Workbook

Sheet Баланс энергии
A1: Заполняется в тыс. кВт.ч. ! | AF1: тыс. кВт.ч.
A3: Баланс электрической энергии по сетям ВН, СН1, СН2, и НН | H3: МУП Горэлектросеть" г. Муром
A5: № п.п. | B5: Показатели | C5: Принято регулирующим органом на 2021 год | H5: Факт за 2021 год | M5: Принято регулирующим органом на 2022 год | R5: По данным организации на 2023 год | W5: По данным организации на 1 полугодие 2023 года | AB5: По данным организации на 2 полугодие 2023 года | AG5: По данным экспертов на 2023 год | AL5: По данным экспертов на 1 полугодие 2023 года | AQ5: По данным экспертов на 2 полугодие 2023 года
C6: Всего | D6: ВН | E6: СН1 | F6: СН2 | G6: НН | H6: Всего | I6: ВН | J6: СН1 | K6: СН2 | L6: НН | M6: Всего | N6: ВН | O6: СН1 | P6: СН2 | Q6: НН | R6: Всего | S6: ВН | T6: СН1 | U6: СН2 | V6: НН | W6: Всего | X6: ВН | Y6: СН1 | Z6: СН2 | AA6: НН | AB6: Всего | AC6: ВН | AD6: СН1 | AE6: СН2 | AF6: НН | AG6: Всего | AH6: ВН | AI6: СН1 | AJ6: СН2 | AK6: НН | AL6: Всего | AM6: ВН | AN6: СН1 | AO6: СН2 | AP6: НН | AQ6: Всего | AR6: ВН | AS6: СН1 | AT6: СН2 | AU6: НН
A7: 1 | B7: 2 | C7: 3 | D7: 4 | E7: 5 | F7: 6 | G7: 7 | H7: 18 | I7: 19 | J7: 20 | K7: 21 | L7: 22 | M7: 33 | N7: 34 | O7: 35 | P7: 36 | Q7: 37 | R7: 48 | S7: 49 | T7: 50 | U7: 51 | V7: 52 | W7: 53 | X7: 54 | Y7: 55 | Z7: 56 | AA7: 57 | AB7: 58 | AC7: 59 | AD7: 60 | AE7: 61 | AF7: 62 | AG7: 63 | AH7: 64 | AI7: 65 | AJ7: 66 | AK7: 67 | AL7: 53 | AM7: 54 | AN7: 55 | AO7: 56 | AP7: 57 | AQ7: 58 | AR7: 59 | AS7: 60 | AT7: 61 | AU7: 62
A8: 1. | B8: Поступление эл.энергии в сеть , ВСЕГО | C8: =C18+C20+C21 -> 179315.8865 | D8: =D14+D15+D16+D17 -> 176517.8045 | E8: =E9+E14+E15+E16+E17 -> 2669.182413 | F8: =F9+F14+F15+F16+F17 -> 179315.8865 | G8: =G9+G14+G15+G16+G17 -> 101856.8472 | H8: =H18+H20+H21 -> 186272.251 | I8: =I14+I15+I16+I17 -> 183340.58 | J8: =J9+J14+J15+J16+J17 -> 2615.196 | K8: =K9+K14+K15+K16+K17 -> 186272.251 | L8: =L9+L14+L15+L16+L17 -> 104737.168 | M8: =M18+M20+M21 -> 177085.2 | N8: =N14+N15+N16+N17 -> 173870.2042 | O8: =O9+O14+O15+O16+O17 -> 2978.83506 | P8: =P9+P14+P15+P16+P17 -> 177085.2 | Q8: =Q9+Q14+Q15+Q16+Q17 -> 100659.5289 | R8: =R18+R20+R21 -> 177084.5839 | S8: =S14+S15+S16+S17 -> 173869.5992 | T8: =T9+T14+T15+T16+T17 -> 2978.824696 | U8: =U9+U14+U15+U16+U17 -> 177084.5839 | V8: =V9+V14+V15+V16+V17 -> 100280.7985 | W8: =W18+W20+W21 -> 89345.55143 | X8: =X14+X15+X16+X17 -> 87723.47586 | Y8: =Y9+Y14+Y15+Y16+Y17 -> 1502.924361 | Z8: =Z9+Z14+Z15+Z16+Z17 -> 89345.55143 | AA8: =AA9+AA14+AA15+AA16+AA17 -> 50426.7366 | AB8: =AB18+AB20+AB21 -> 87739.03247 | AC8: =AC14+AC15+AC16+AC17 -> 86146.12338 | AD8: =AD9+AD14+AD15+AD16+AD17 -> 1475.900335 | AE8: =AE9+AE14+AE15+AE16+AE17 -> 87739.03247 | AF8: =AF9+AF14+AF15+AF16+AF17 -> 49854.03518 | AG8: =AG18+AG20+AG21 -> 182430.5558 | AH8: =AH14+AH15+AH16+AH17 -> 179517.3626 | AI8: =AI9+AI14+AI15+AI16+AI17 -> 2599.375077 | AJ8: =AJ9+AJ14+AJ15+AJ16+AJ17 -> 182430.5558 | AK8: =AK9+AK14+AK15+AK16+AK17 -> 102351.0992 | AL8: =AL18+AL20+AL21 -> 92042.78897 | AM8: =AM14+AM15+AM16+AM17 -> 90572.97837 | AN8: =AN9+AN14+AN15+AN16+AN17 -> 1311.478074 | AO8: =AO9+AO14+AO15+AO16+AO17 -> 92042.78897 | AP8: =AP9+AP14+AP15+AP16+AP17 -> 51606.18253 | AQ8: =AQ18+AQ20+AQ21 -> 90387.76684 | AR8: =AR14+AR15+AR16+AR17 -> 88944.38422 | AS8: =AS9+AS14+AS15+AS16+AS17 -> 1287.897003 | AT8: =AT9+AT14+AT15+AT16+AT17 -> 90387.76684 | AU8: =AU9+AU14+AU15+AU16+AU17 -> 50744.91671
A9: 1.1. | B9: из смежной сети, всего | C9: х | D9: х | E9: =E11 -> 0 | F9: =F11+F12 -> 179186.9869 | G9: =G11+G12+G13 -> 101856.8472 | H9: х | I9: х | J9: =J11 -> 0 | K9: =K11+K12 -> 185955.776 | L9: =L11+L12+L13 -> 104737.168 | M9: х | N9: х | O9: =O11 -> 0 | P9: =P11+P12 -> 176849.0392 | Q9: =Q11+Q12+Q13 -> 100659.5289 | R9: х | S9: х | T9: =T11 -> 0 | U9: =U11+U12 -> 176848.4239 | V9: =V11+V12+V13 -> 100280.7985 | W9: х | X9: х | Y9: =Y11 -> 0 | Z9: =Z11+Z12 -> 89226.40022 | AA9: =AA11+AA12+AA13 -> 50426.7366 | AB9: х | AC9: х | AD9: =AD11 -> 0 | AE9: =AE11+AE12 -> 87622.02371 | AF9: =AF11+AF12+AF13 -> 49854.03518 | AG9: х | AH9: х | AI9: =AI11 -> 0 | AJ9: =AJ11+AJ12 -> 182116.7377 | AK9: =AK11+AK12+AK13 -> 102351.0992 | AL9: х | AM9: х | AN9: =AN11 -> 0 | AO9: =AO11+AO12 -> 91884.45645 | AP9: =AP11+AP12+AP13 -> 51606.18253 | AQ9: х | AR9: х | AS9: =AS11 -> 0 | AT9: =AT11+AT12 -> 90232.28122 | AU9: =AU11+AU12+AU13 -> 50744.91671
B10: в том числе из сети | C10: х | D10: х | E10: х | F10: х | G10: х | H10: х | I10: х | J10: х | K10: х | L10: х | M10: х | N10: х | O10: х | P10: х | Q10: х | R10: х | S10: х | T10: х | U10: х | V10: х | W10: х | X10: х | Y10: х | Z10: х | AA10: х | AB10: х | AC10: х | AD10: х | AE10: х | AF10: х | AG10: х | AH10: х | AI10: х | AJ10: х | AK10: х | AL10: х | AM10: х | AN10: х | AO10: х | AP10: х | AQ10: х | AR10: х | AS10: х | AT10: х | AU10: х
A11: 1.1.1. | B11: ВН | C11: х | D11: х | F11: =D8-D18-D20-D21-E11-G11 -> 176517.8045 | H11: х | I11: х | K11: =I8-I18-I20-I21-J11-L11 -> 183340.58 | M11: х | N11: х | P11: =N8-N18-N20-N21-O11-Q11 -> 173870.2042 | R11: х | S11: х | U11: =S8-S18-S20-S21-T11-V11 -> 173869.5992 | W11: х | X11: х | Z11: =X8-X18-X20-X21-Y11-AA11 -> 87723.47586 | AB11: х | AC11: х | AE11: =AC8-AC18-AC20-AC21-AD11-AF11 -> 86146.12338 | AG11: х | AH11: х | AJ11: =AH8-AH18-AH20-AH21-AI11-AK11 -> 179517.3626 | AL11: х | AM11: х | AO11: =AM8-AM18-AM20-AM21-AN11-AP11 -> 90572.97837 | AQ11: х | AR11: х | AT11: =AR8-AR18-AR20-AR21-AS11-AU11 -> 88944.38422
A12: 1.1.2. | B12: СН1 | C12: х | D12: х | E12: х | F12: =E8-E18-E20-E21-G12 -> 2669.182413 | H12: х | I12: х | J12: х | K12: =J8-J18-J20-J21-L12 -> 2615.196 | M12: х | N12: х | O12: х | P12: =O8-O18-O20-O21-Q12 -> 2978.83506 | R12: х | S12: х | T12: х | U12: =T8-T18-T20-T21-V12 -> 2978.824696 | W12: х | X12: х | Y12: х | Z12: =Y8-Y18-Y20-Y21-AA12 -> 1502.924361 | AB12: х | AC12: х | AD12: х | AE12: =AD8-AD18-AD20-AD21-AF12 -> 1475.900335 | AG12: х | AH12: х | AI12: х | AJ12: =AI8-AI18-AI20-AI21-AK12 -> 2599.375077 | AL12: х | AM12: х | AN12: х | AO12: =AN8-AN18-AN20-AN21-AP12 -> 1311.478074 | AQ12: х | AR12: х | AS12: х | AT12: =AS8-AS18-AS20-AS21-AU12 -> 1287.897003
A13: 1.1.3. | B13: СН2 | C13: х | D13: х | E13: х | F13: х | G13: =F8-F18-F20-F21 -> 101856.8472 | H13: х | I13: х | J13: х | K13: х | L13: =K8-K18-K20-K21 -> 104737.168 | M13: х | N13: х | O13: х | P13: х | Q13: =P8-P18-P20-P21 -> 100659.5289 | R13: х | S13: х | T13: х | U13: х | V13: =U8-U18-U20-U21 -> 100280.7985 | W13: х | X13: х | Y13: х | Z13: х | AA13: =Z8-Z18-Z20-Z21 -> 50426.7366 | AB13: х | AC13: х | AD13: х | AE13: х | AF13: =AE8-AE18-AE20-AE21 -> 49854.03518 | AG13: х | AH13: х | AI13: х | AJ13: х | AK13: =AJ8-AJ18-AJ20-AJ21 -> 102351.0992 | AL13: х | AM13: х | AN13: х | AO13: х | AP13: =AO8-AO18-AO20-AO21 -> 51606.18253 | AQ13: х | AR13: х | AS13: х | AT13: х | AU13: =AT8-AT18-AT20-AT21 -> 50744.91671
A14: 1.2. | B14: от электростанций | C14: =SUM(D14:G14) -> 0 | H14: =SUM(I14:L14) -> 0 | M14: =SUM(N14:Q14) -> 0 | R14: =SUM(S14:V14) -> 0 | W14: =SUM(X14:AA14) -> 0 | AB14: =SUM(AC14:AF14) -> 0 | AG14: =SUM(AH14:AK14) -> 0 | AH14: 0 | AI14: 0 | AJ14: 0 | AK14: 0 | AL14: =SUM(AM14:AP14) -> 0 | AQ14: =SUM(AR14:AU14) -> 0
A15: 1.3. | B15: от ОАО "ФСК ЕЭС" | C15: =SUM(D15:G15) -> 0 | H15: =SUM(I15:L15) -> 0 | M15: =SUM(N15:Q15) -> 0 | R15: =SUM(S15:V15) -> 0 | W15: =SUM(X15:AA15) -> 0 | AB15: =SUM(AC15:AF15) -> 0 | AG15: =SUM(AH15:AK15) -> 0 | AH15: 0 | AI15: 0 | AJ15: 0 | AK15: 0 | AL15: =SUM(AM15:AP15) -> 0 | AQ15: =SUM(AR15:AU15) -> 0
A16: 1.4. | B16: от филиала "Владимирэнерго" ОАО "МРСК Центра и Приволжья" | C16: =SUM(D16:G16) -> 179315.8865 | D16: 176517.8045 | E16: 2669.182413 | F16: 128.8995538 | H16: =SUM(I16:L16) -> 186272.251 | I16: 183340.58 | J16: 2615.196 | K16: 316.475 | M16: =SUM(N16:Q16) -> 177002.4633 | N16: 173870.2042 | O16: 2978.83506 | P16: 153.4241029 | R16: =SUM(S16:V16) -> 177084.5839 | S16: =X16+AC16 -> 173869.5992 | T16: =Y16+AD16 -> 2978.824696 | U16: =Z16+AE16 -> 236.1599644 | W16: =SUM(X16:AA16) -> 89345.55143 | X16: 87723.47586 | Y16: 1502.924361 | Z16: 119.1512089 | AB16: =SUM(AC16:AF16) -> 87739.03247 | AC16: 86146.12338 | AD16: 1475.900335 | AE16: 117.0087555 | AG16: =SUM(AH16:AK16) -> 182116.7377 | AH16: 179517.3626 | AI16: 2599.375077 | AJ16: 0 | AK16: 0 | AL16: =SUM(AM16:AP16) -> 91884.45645 | AM16: 90572.97837 | AN16: 1311.478074 | AO16: 0 | AP16: 0 | AQ16: =SUM(AR16:AU16) -> 90232.28122 | AR16: 88944.38422 | AS16: 1287.897003 | AT16: 0 | AU16: 0
A17: 1.5. | B17: от других сетевых организаций | C17: =SUM(D17:G17) -> 0 | H17: =SUM(I17:L17) -> 0 | M17: =SUM(N17:Q17) -> 82.73668313 | P17: 82.73668313 | R17: =SUM(S17:V17) -> 0 | W17: =SUM(X17:AA17) -> 0 | AB17: =SUM(AC17:AF17) -> 0 | AG17: =SUM(AH17:AK17) -> 313.8181415 | AH17: 0 | AI17: 0 | AJ17: 313.8181415 | AK17: 0 | AL17: =SUM(AM17:AP17) -> 158.3325221 | AM17: 0 | AN17: 0 | AO17: 158.3325221 | AP17: 0 | AQ17: =SUM(AR17:AU17) -> 155.4856194 | AR17: 0 | AS17: 0 | AT17: 155.4856194 | AU17: 0
A18: 2. | B18: Потери электроэнергии в сети | C18: =SUM(D18:G18) -> 13143.9 | D18: =D8*D19/100 -> 0 | E18: =E8*E19/100 -> 0 | F18: =F8*F19/100 -> 7029.18275 | G18: =G8*G19/100 -> 6114.71725 | H18: =SUM(I18:L18) -> 15102.9161 | I18: =I8*I19/100 -> 0 | J18: =J8*J19/100 -> 0 | K18: =K8*K19/100 -> 7699.904 | L18: =L8*L19/100 -> 7403.0121 | M18: =SUM(N18:Q18) -> 12980.3 | N18: =N8*N19/100 -> 0 | O18: =O8*O19/100 -> 0 | P18: =P8*P19/100 -> 6941.73984 | Q18: =Q8*Q19/100 -> 6038.56016 | R18: =SUM(S18:V18) -> 12980.3 | S18: =S8*S19/100 -> 0 | T18: =T8*T19/100 -> 0 | U18: =U8*U19/100 -> 7320.114985 | V18: =V8*V19/100 -> 5660.185015 | W18: =SUM(X18:AA18) -> 6473.340749 | X18: =X8*X19/100 -> 0 | Y18: =Y8*Y19/100 -> 0 | Z18: =Z8*Z19/100 -> 3829.752952 | AA18: =AA8*AA19/100 -> 2643.587796 | AB18: =SUM(AC18:AF18) -> 6506.959251 | AC18: =AC8*AC19/100 -> 0 | AD18: =AD8*AD19/100 -> 0 | AE18: =AE8*AE19/100 -> 3490.388759 | AF18: =AF8*AF19/100 -> 3016.570492 | AG18: =SUM(AH18:AK18) -> 13372.09571 | AH18: =AH8*AH19/100 -> 0 | AI18: =AI8*AI19/100 -> 0 | AJ18: =AJ8*AJ19/100 -> 7151.277788 | AK18: =AK8*AK19/100 -> 6220.817921 | AL18: =SUM(AM18:AP18) -> 6668.7 | AM18: =AM8*AM19/100 -> 0 | AN18: =AN8*AN19/100 -> 0 | AO18: =AO8*AO19/100 -> 3608.077328 | AP18: =AP8*AP19/100 -> 3060.622672 | AQ18: =SUM(AR18:AU18) -> 6703.395708 | AR18: =AR8*AR19/100 -> 0 | AS18: =AS8*AS19/100 -> 0 | AT18: =AT8*AT19/100 -> 3543.20046 | AU18: =AU8*AU19/100 -> 3160.195248
A19: 2.1. | B19: то же в % (п.2./п.1.) | C19: =IF(C8=0,0,C18/C8*100) -> 7.330025386 | F19: 3.92 | G19: 6.003246139 | H19: =IF(H8=0,0,H18/H8*100) -> 8.107979594 | K19: 4.1336828 | L19: 7.068180514 | M19: =IF(M8=0,0,M18/M8*100) -> 7.329974498 | P19: 3.92 | Q19: 5.998995055 | R19: =IF(R8=0,0,R18/R8*100) -> 7.33 | U19: 4.1336828 | V19: 5.644335804 | W19: =IF(W8=0,0,W18/W8*100) -> 7.245286022 | Z19: 4.28645063 | AA19: 5.242432834 | AB19: =IF(AB8=0,0,AB18/AB8*100) -> 7.416265108 | AE19: 3.978148221 | AF19: 6.050805078 | AG19: =IF(AG8=0,0,AG18/AG8*100) -> 7.3299649 | AH19: 0 | AI19: 0 | AJ19: 3.92 | AK19: 6.07791999 | AL19: =IF(AL8=0,0,AL18/AL8*100) -> 7.245217224 | AM19: 0 | AN19: 0 | AO19: 3.92 | AP19: 5.930728689 | AQ19: =IF(AQ8=0,0,AQ18/AQ8*100) -> 7.416264327 | AR19: 0 | AS19: 0 | AT19: 3.92 | AU19: 6.227609489
A20: 3. | B20: Расход электроэнергии на производственные и хознужды | C20: =SUM(D20:G20) -> 0 | H20: =SUM(I20:L20) -> 0 | M20: =SUM(N20:Q20) -> 0 | R20: =SUM(S20:V20) -> 0 | W20: =SUM(X20:AA20) -> 0 | AB20: =SUM(AC20:AF20) -> 0 | AG20: =SUM(AH20:AK20) -> 0 | AL20: =SUM(AM20:AP20) -> 0 | AQ20: =SUM(AR20:AU20) -> 0
A21: 4. | B21: Полезный отпуск из сети | C21: =SUM(D21:G21) -> 166171.9865 | D21: =D22+D23+D24 -> 0 | E21: =E22+E23+E24 -> 0 | F21: =F22+F23+F24 -> 70429.85649 | G21: =G8-G18-G20 -> 95742.12999 | H21: =SUM(I21:L21) -> 171169.3349 | I21: =I22+I23+I24 -> 0 | J21: =J22+J23+J24 -> 0 | K21: =K22+K23+K24 -> 73835.179 | L21: =L8-L18-L20 -> 97334.1559 | M21: =SUM(N21:Q21) -> 164104.9 | N21: =N22+N23+N24 -> 0 | O21: =O22+O23+O24 -> 0 | P21: =P22+P23+P24 -> 69483.93128 | Q21: =Q8-Q18-Q20 -> 94620.96872 | R21: =SUM(S21:V21) -> 164104.2839 | S21: =S22+S23+S24 -> 0 | T21: =T22+T23+T24 -> 0 | U21: =U22+U23+U24 -> 69483.67041 | V21: =V8-V18-V20 -> 94620.61349 | W21: =SUM(X21:AA21) -> 82872.21068 | X21: =X22+X23+X24 -> 0 | Y21: =Y22+Y23+Y24 -> 0 | Z21: =Z22+Z23+Z24 -> 35089.06189 | AA21: =AA8-AA18-AA20 -> 47783.1488 | AB21: =SUM(AC21:AF21) -> 81232.07322 | AC21: =AC22+AC23+AC24 -> 0 | AD21: =AD22+AD23+AD24 -> 0 | AE21: =AE22+AE23+AE24 -> 34394.60853 | AF21: =AF8-AF18-AF20 -> 46837.46469 | AG21: =SUM(AH21:AK21) -> 169058.4601 | AH21: =AH22+AH23+AH24 -> 0 | AI21: =AI22+AI23+AI24 -> 0 | AJ21: =AJ22+AJ23+AJ24 -> 72928.17878 | AK21: =AK8-AK18-AK20 -> 96130.28132 | AL21: =SUM(AM21:AP21) -> 85374.08897 | AM21: =AM22+AM23+AM24 -> 0 | AN21: =AN22+AN23+AN24 -> 0 | AO21: =AO22+AO23+AO24 -> 36828.52911 | AP21: =AP8-AP18-AP20 -> 48545.55986 | AQ21: =SUM(AR21:AU21) -> 83684.37113 | AR21: =AR22+AR23+AR24 -> 0 | AS21: =AS22+AS23+AS24 -> 0 | AT21: =AT22+AT23+AT24 -> 36099.64967 | AU21: =AU8-AU18-AU20 -> 47584.72146
A22: 4.1. | B22: потребителям, присоединенным к сети | C22: =SUM(D22:G22) -> 159211.1144 | F22: 64330.90011 | G22: 94880.21428 | H22: =SUM(I22:L22) -> 171169.335 | K22: 73835.179 | L22: 97334.156 | M22: =SUM(N22:Q22) -> 161796.1245 | P22: 67175.15578 | Q22: 94620.96872 | R22: =SUM(S22:V22) -> 164104.2839 | U22: =Z22+AE22 -> 69483.67041 | V22: =AA22+AF22 -> 94620.61349 | W22: =SUM(X22:AA22) -> 82872.21068 | Z22: 35089.06189 | AA22: 47783.1488 | AB22: =SUM(AC22:AF22) -> 81232.07322 | AE22: 34394.60853 | AF22: 46837.46469 | AG22: =SUM(AH22:AK22) -> 166393.7429 | AH22: 0 | AI22: 0 | AJ22: 70263.46157 | AK22: 96130.28132 | AL22: =SUM(AM22:AP22) -> 84028.41413 | AM22: 0 | AN22: 0 | AO22: 35482.85427 | AP22: 48545.55986 | AQ22: =SUM(AR22:AU22) -> 82365.32876 | AR22: 0 | AS22: 0 | AT22: 34780.6073 | AU22: 47584.72146
A23: 4.2. | B23: переток в филиал "Владимирэнерго" ОАО "МРСК Центра и Приволжья" | C23: =SUM(D23:G23) -> 0 | F23: 0 | G23: 0 | H23: =SUM(I23:L23) -> 0 | M23: =SUM(N23:Q23) -> 0 | P23: 0 | Q23: 0 | R23: =SUM(S23:V23) -> 0 | W23: =SUM(X23:AA23) -> 0 | AB23: =SUM(AC23:AF23) -> 0 | AG23: =SUM(AH23:AK23) -> 0 | AL23: =SUM(AM23:AP23) -> 0 | AM23: 0 | AN23: 0 | AO23: 0 | AP23: 0 | AQ23: =SUM(AR23:AU23) -> 0 | AR23: 0 | AS23: 0 | AT23: 0 | AU23: 0
A24: 4.3. | B24: переток в другие сетевые организации | C24: =SUM(D24:G24) -> 6960.872097 | F24: 6098.956379 | G24: 861.915718 | H24: =SUM(I24:L24) -> 0 | M24: =SUM(N24:Q24) -> 2308.775498 | P24: 2308.775498 | Q24: 0 | R24: =SUM(S24:V24) -> 0 | W24: =SUM(X24:AA24) -> 0 | AB24: =SUM(AC24:AF24) -> 0 | AG24: =SUM(AH24:AK24) -> 2664.717209 | AH24: 0 | AI24: 0 | AJ24: 2664.717209 | AK24: 0 | AL24: =SUM(AM24:AP24) -> 1345.67484 | AM24: 0 | AN24: 0 | AO24: 1345.67484 | AP24: 0 | AQ24: =SUM(AR24:AU24) -> 1319.042369 | AR24: 0 | AS24: 0 | AT24: 1319.042369 | AU24: 0
B25: Проверка | D25: =D8-D18-D20-D22-D23-D24-E11-F11-G11 -> 0 | E25: =E8-E18-E20-E22-E23-E24-F12-G12 -> 0 | F25: =F8-F18-F20-F22-F23-F24-G13 -> 0 | G25: =G8-G18-G20-G22-G23-G24 -> 0 | I25: =I8-I18-I20-I22-I23-I24-J11-K11-L11 -> 0 | J25: =J8-J18-J20-J22-J23-J24-K12-L12 -> 0 | K25: =K8-K18-K20-K22-K23-K24-L13 -> 0 | L25: =L8-L18-L20-L22-L23-L24 -> -0.0001000000047 | N25: =N8-N18-N20-N22-N23-N24-O11-P11-Q11 -> 0 | O25: =O8-O18-O20-O22-O23-O24-P12-Q12 -> 0 | P25: =P8-P18-P20-P22-P23-P24-Q13 -> 0 | Q25: =Q8-Q18-Q20-Q22-Q23-Q24 -> -1.455191523e-11 | S25: =S8-S18-S20-S22-S23-S24-T11-U11-V11 -> 0 | T25: =T8-T18-T20-T22-T23-T24-U12-V12 -> 0 | U25: =U8-U18-U20-U22-U23-U24-V13 -> 0 | V25: =V8-V18-V20-V22-V23-V24 -> 4.365574569e-11 | X25: =X8-X18-X20-X22-X23-X24-Y11-Z11-AA11 -> 0 | Y25: =Y8-Y18-Y20-Y22-Y23-Y24-Z12-AA12 -> 0 | Z25: =Z8-Z18-Z20-Z22-Z23-Z24-AA13 -> 0 | AA25: =AA8-AA18-AA20-AA22-AA23-AA24 -> 3.637978807e-11 | AC25: =AC8-AC18-AC20-AC22-AC23-AC24-AD11-AE11-AF11 -> 0 | AD25: =AD8-AD18-AD20-AD22-AD23-AD24-AE12-AF12 -> 0 | AE25: =AE8-AE18-AE20-AE22-AE23-AE24-AF13 -> 0 | AF25: =AF8-AF18-AF20-AF22-AF23-AF24 -> -1.455191523e-11 | AH25: =AH8-AH18-AH20-AH22-AH23-AH24-AI11-AJ11-AK11 -> 0 | AI25: =AI8-AI18-AI20-AI22-AI23-AI24-AJ12-AK12 -> 0 | AJ25: =AJ8-AJ18-AJ20-AJ22-AJ23-AJ24-AK13 -> 0 | AK25: =AK8-AK18-AK20-AK22-AK23-AK24 -> 1.455191523e-11 | AM25: =AM8-AM18-AM20-AM22-AM23-AM24-AN11-AO11-AP11 -> 0 | AN25: =AN8-AN18-AN20-AN22-AN23-AN24-AO12-AP12 -> 0 | AO25: =AO8-AO18-AO20-AO22-AO23-AO24-AP13 -> 0 | AP25: =AP8-AP18-AP20-AP22-AP23-AP24 -> 0 | AR25: =AR8-AR18-AR20-AR22-AR23-AR24-AS11-AT11-AU11 -> 0 | AS25: =AS8-AS18-AS20-AS22-AS23-AS24-AT12-AU12 -> 0 | AT25: =AT8-AT18-AT20-AT22-AT23-AT24-AU13 -> 0 | AU25: =AU8-AU18-AU20-AU22-AU23-AU24 -> 1.455191523e-11
B27: Руководитель организации | D27: А.Ю. Александрук

Sheet Баланс мощности
B2: Электрическая мощность по диапазонам напряжения
B4: МУП "Горэлектросеть" г. Муром
G6: МВт
A7: № п.п. | B7: Показатели | C7: По данным организации на 2023 год | H7: По данным экспертов на 2023 год
C8: Всего | D8: ВН | E8: СН1 | F8: СН2 | G8: НН | H8: Всего | I8: ВН | J8: СН1 | K8: СН2 | L8: НН
A9: 1 | B9: 2 | C9: 3 | D9: 4 | E9: 5 | F9: 6 | G9: 7 | H9: 8 | I9: 9 | J9: 10 | K9: 11 | L9: 12
A10: 1. | B10: Поступление мощности в сеть , ВСЕГО | C10: =C20+C22+C23 -> 29.1252 | D10: =D16+D17+D18+D19 -> 28.6707244 | E10: =E11+E16+E17+E18+E19 -> 0.4335392 | F10: =F11+F16+F17+F18+F19 -> 29.1252 | G10: =G11+G16+G17+G18+G19 -> 16.50663562 | H10: =H20+H22+H23 -> 0 | I10: =I16+I17+I18+I19 -> 0 | J10: =J11+J16+J17+J18+J19 -> 0 | K10: =K11+K16+K17+K18+K19 -> 0 | L10: =L11+L16+L17+L18+L19 -> 0
A11: 1.1. | B11: из смежной сети, всего | C11: х | D11: х | E11: =E13 -> 0 | F11: =F13+F14 -> 29.1042636 | G11: =G13+G14+G15 -> 16.50663562 | H11: х | I11: х | J11: =J13 -> 0 | K11: =K13+K14 -> 0 | L11: =L13+L14+L15 -> 0
B12: в том числе из сети | C12: х | D12: х | E12: х | F12: х | G12: х | H12: х | I12: х | J12: х | K12: х | L12: х
A13: 1.1.1. | B13: ВН | C13: х | D13: х | F13: =D10-D20-D22-D23-G13-E13 -> 28.6707244 | H13: х | I13: х | K13: =I10-I20-I22-I23-L13-J13 -> 0
A14: 1.1.2. | B14: СН1 | C14: х | D14: х | E14: х | F14: =E10-E20-E22-E23-G14 -> 0.4335392 | H14: х | I14: х | J14: х | K14: =J10-J20-J22-J23-L14 -> 0
A15: 1.1.3. | B15: СН2 | C15: х | D15: х | E15: х | F15: х | G15: =F10-F20-F22-F23 -> 16.50663562 | H15: х | I15: х | J15: х | K15: х | L15: =K10-K20-K22-K23 -> 0
A16: 1.2. | B16: от электростанций | C16: =SUM(D16:G16) -> 0 | H16: =SUM(I16:L16) -> 0
A17: 1.3. | B17: от ОАО "ФСК ЕЭС" | C17: =SUM(D17:G17) -> 0 | H17: =SUM(I17:L17) -> 0
A18: 1.4. | B18: от филиала "Владимирэнерго" ОАО "МРСК Центра и Приволжья" | C18: =SUM(D18:G18) -> 29.1252 | D18: 28.6707244 | E18: 0.4335392 | F18: 0.0209364 | H18: =SUM(I18:L18) -> 0
A19: 1.5. | B19: от других сетевых организаций | C19: =SUM(D19:G19) -> 0 | H19: =SUM(I19:L19) -> 0
A20: 2. | B20: Потери мощности в сети | C20: =SUM(D20:G20) -> 2.18712231 | D20: =D10*D21/100 -> 0 | E20: =E10*E21/100 -> 0 | F20: =F10*F21/100 -> 1.203943383 | G20: =G10*G21/100 -> 0.9831789271 | H20: =SUM(I20:L20) -> 0 | I20: =I10*I21/100 -> 0 | J20: =J10*J21/100 -> 0 | K20: =K10*K21/100 -> 0 | L20: =L10*L21/100 -> 0
A21: 2.1. | B21: то же в % (п.2./п.1.) | C21: =IF(C10=0,0,C20/C10*100) -> 7.509381257 | D21: ='Баланс энергии'!S19 -> 0 | E21: ='Баланс энергии'!T19 -> 0 | F21: ='Баланс энергии'!U19 -> 4.1336828 | G21: 5.956264801 | H21: =IF(H10=0,0,H20/H10*100) -> 0 | I21: ='Баланс энергии'!AH19 -> 0 | J21: ='Баланс энергии'!AI19 -> 0 | K21: ='Баланс энергии'!AJ19 -> 3.92
A22: 3. | B22: Расход электроэнергии на производственные и хознужды | C22: =SUM(D22:G22) -> 0 | H22: =SUM(I22:L22) -> 0
A23: 4. | B23: Полезный отпуск из сети | C23: =SUM(D23:G23) -> 26.93807769 | D23: =D24+D25+D26 -> 0 | E23: =E24+E25+E26 -> 0 | F23: =F24+F25+F26 -> 11.414621 | G23: =G10-G20-G22 -> 15.52345669 | H23: =SUM(I23:L23) -> 0 | I23: =I24+I25+I26 -> 0 | J23: =J24+J25+J26 -> 0 | K23: =K24+K25+K26 -> 0 | L23: =L10-L20-L22 -> 0
A24: 4.1. | B24: потребителям, присоединенным к сети | C24: =SUM(D24:G24) -> 26.93808319 | F24: 11.414621 | G24: 15.52346219 | H24: =SUM(I24:L24) -> 0
A25: 4.2. | B25: переток в филиал "Владимирэнерго" ОАО "МРСК Центра и Приволжья" | C25: =SUM(D25:G25) -> 0 | H25: =SUM(I25:L25) -> 0
A26: 4.3. | B26: переток в другие сетевые организации | C26: =SUM(D26:G26) -> 0 | H26: =SUM(I26:L26) -> 0
B27: Проверка | D27: =D10-D20-D22-D24-D25-D26-E13-F13-G13 -> 0 | E27: =E10-E20-E22-E24-E25-E26-F14-G14 -> 0 | F27: =F10-F20-F22-F24-F25-F26-G15 -> 0 | G27: =G10-G20-G22-G24-G25-G26 -> -5.501558544e-06 | I27: =I10-I20-I22-I24-I25-I26-J13-K13-L13 -> 0 | J27: =J10-J20-J22-J24-J25-J26-K14-L14 -> 0 | K27: =K10-K20-K22-K24-K25-K26-L15 -> 0 | L27: =L10-L20-L22-L24-L25-L26 -> 0
B29: Руководитель организации | D29: А.Ю. Александрук

Sheet Аренда имущества (hidden)
A2: Расходы по аренде имущества
A3: =#REF! -> 
A5: Наименование | B5: 2021 год | D5: 2022 год | F5: 2023 год | V5: 2021 год Факт по данным экспертов
F6: По данным организации | N6: По расчету экспертов
F7: Сумма арендной платы для включения в тариф | G7: Стоимость арендной платы по договору | H7: Стоимость арендной платы в соответствии с требованиями п. 28 Основ ценообразования | N7: Сумма арендной платы для включения в тариф | O7: Стоимость арендной платы по договору | P7: Стоимость арендной платы расчитанной в соответствии с требованиями п. 28 Основ ценообразования
B8: Утверждено | C8: Факт | D8: Утверждено | E8: Ожидаемые | H8: Всего | I8: амортизационные отчисления | J8: налог на имущество | K8: транспортный налог | L8: плата за землю | M8: иные обязательные платежи предусмотренные законодательством, связанные с арендуемым имуществом | P8: Всего | Q8: амортизационные отчисления | R8: налог на имущество | S8: транспортный налог | T8: плата за землю | U8: иные обязательные платежи предусмотренные законодательством, связанные с арендуемым имуществом
A9: 1 | B9: 2 | C9: 3 | D9: 4 | E9: 5 | F9: 6 | G9: 7 | H9: 8 | I9: 9 | J9: 10 | K9: 11 | L9: 12 | M9: 13 | N9: 14 | O9: 15 | P9: 16 | Q9: 17 | R9: 18 | S9: 19 | T9: 20 | U9: 21 | V9: 22
A10: Аренда объектов электроэнергетики, иных объектов производственного назначения, участвующих в процессе передачи электроэнергии | B10: =SUM(B11:B14) -> 0 | C10: =SUM(C11:C14) -> 0 | D10: 0 | E10: 0 | F10: 0 | G10: 0 | H10: 0 | I10: 0 | J10: 0 | K10: 0 | L10: 0 | M10: 0 | N10: =SUM(N11:N14) -> 0 | O10: =SUM(O11:O14) -> 0 | P10: 0 | Q10: 0 | R10: 0 | S10: 0 | T10: 0 | U10: 0 | V10: 0
F11: =MIN(G11,H11) -> 0 | H11: =I11+J11+K11+L11+M11 -> 0 | N11: =MIN(O11,P11) -> 0 | P11: =Q11+R11+S11+T11+U11 -> 0
F12: =MIN(G12,H12) -> 0 | H12: =I12+J12+K12+L12+M12 -> 0 | N12: =MIN(O12,P12) -> 0 | P12: =Q12+R12+S12+T12+U12 -> 0
A13: договор с _____ от_____№ __ | F13: =MIN(G13,H13) -> 0 | H13: =I13+J13+K13+L13+M13 -> 0 | N13: =MIN(O13,P13) -> 0 | P13: =Q13+R13+S13+T13+U13 -> 0
A14: договор с _____ от_____№ __ | F14: =MIN(G14,H14) -> 0 | H14: =I14+J14+K14+L14+M14 -> 0 | N14: =MIN(O14,P14) -> 0 | P14: =Q14+R14+S14+T14+U14 -> 0
A15: Добавить
A16: Аренда помещений | B16: =SUM(B17:B20) -> 0 | C16: =SUM(C17:C20) -> 0 | D16: =SUM(D17:D20) -> 0 | E16: =SUM(E17:E20) -> 0 | F16: =SUM(F17:F20) -> 0 | G16: х | H16: х | I16: х | J16: х | K16: х | L16: х | M16: х | N16: =SUM(N17:N20) -> 0 | O16: х | P16: х | Q16: х | R16: х | S16: х | T16: х | U16: х | V16: =SUM(V17:V20) -> 0
A17: договор с _____ от_____№ __ | G17: х | H17: х | I17: х | J17: х | K17: х | L17: х | M17: х | O17: х | P17: х | Q17: х | R17: х | S17: х | T17: х | U17: х
A18: договор с _____ от_____№ __ | G18: х | H18: х | I18: х | J18: х | K18: х | L18: х | M18: х | O18: х | P18: х | Q18: х | R18: х | S18: х | T18: х | U18: х
A19: договор с _____ от_____№ __ | G19: х | H19: х | I19: х | J19: х | K19: х | L19: х | M19: х | O19: х | P19: х | Q19: х | R19: х | S19: х | T19: х | U19: х
A20: договор с _____ от_____№ __ | G20: х | H20: х | I20: х | J20: х | K20: х | L20: х | M20: х | O20: х | P20: х | Q20: х | R20: х | S20: х | T20: х | U20: х
A21: Добавить
A22: Аренда транспортных средств | B22: =SUM(B23:B24) -> 0 | C22: =SUM(C23:C24) -> 0 | D22: =SUM(D23:D24) -> 0 | E22: =SUM(E23:E24) -> 0 | F22: =SUM(F23:F24) -> 0 | G22: х | H22: х | I22: х | J22: х | K22: х | L22: х | M22: х | N22: =SUM(N23:N24) -> 0 | O22: х | P22: х | Q22: х | R22: х | S22: х | T22: х | U22: х | V22: =SUM(V23:V24) -> 0
A23: договор с _____ от_____№ __ | G23: х | H23: х | I23: х | J23: х | K23: х | L23: х | M23: х | O23: х | P23: х | Q23: х | R23: х | S23: х | T23: х | U23: х
A24: договор с _____ от_____№ __ | G24: х | H24: х | I24: х | J24: х | K24: х | L24: х | M24: х | O24: х | P24: х | Q24: х | R24: х | S24: х | T24: х | U24: х
A25: Добавить
A26: Лизинг | B26: =SUM(B27:B31) -> 0 | C26: =SUM(C27:C31) -> 0 | D26: =SUM(D27:D31) -> 0 | E26: =SUM(E27:E31) -> 0 | F26: =SUM(F27:F31) -> 0 | G26: х | H26: х | I26: х | J26: х | K26: х | L26: х | M26: х | N26: =SUM(N27:N31) -> 0 | O26: х | P26: х | Q26: х | R26: х | S26: х | T26: х | U26: х | V26: =SUM(V27:V31) -> 0
A27: объектов электросетевого хозяйства договор с _____ от_____№ __ | G27: х | H27: х | I27: х | J27: х | K27: х | L27: х | M27: х | O27: х | P27: х | Q27: х | R27: х | S27: х | T27: х | U27: х
A28: иного имущества договор с _____ от_____№ __ | G28: х | H28: х | I28: х | J28: х | K28: х | L28: х | M28: х | O28: х | P28: х | Q28: х | R28: х | S28: х | T28: х | U28: х
A29: договор с _____ от_____№ __ | G29: х | H29: х | I29: х | J29: х | K29: х | L29: х | M29: х | O29: х | P29: х | Q29: х | R29: х | S29: х | T29: х | U29: х
A30: договор с _____ от_____№ __ | G30: х | H30: х | I30: х | J30: х | K30: х | L30: х | M30: х | O30: х | P30: х | Q30: х | R30: х | S30: х | T30: х | U30: х
A31: договор с _____ от_____№ __ | G31: х | H31: х | I31: х | J31: х | K31: х | L31: х | M31: х | O31: х | P31: х | Q31: х | R31: х | S31: х | T31: х | U31: х
A32: Добавить
A33: ИТОГО расходы по аренде имущества, всего в том числе | B33: =B10+B16+B22+B26 -> 0 | C33: =C10+C16+C22+C26 -> 0 | D33: =D10+D16+D22+D26 -> 0 | E33: =E10+E16+E22+E26 -> 0 | F33: =F10+F16+F22+F26 -> 0 | G33: х | H33: х | I33: х | J33: х | K33: х | L33: х | M33: х | N33: =N10+N16+N22+N26 -> 0 | O33: х | P33: х | Q33: х | R33: х | S33: х | T33: х | U33: х | V33: =V10+V16+V22+V26 -> 0
A34: Расходы по аренде имущества, относимые на услугу по передаче электрической энергии | G34: х | H34: х | I34: х | J34: х | K34: х | L34: х | M34: х | O34: х | P34: х | Q34: х | R34: х | S34: х | T34: х | U34: х | Y34: Условное форматирование: если в ячейке не указано значение -форматируется красным цветом
A35: в т.ч. по уровням напряжения: ВН | B35: х | C35: х | E35: х | G35: х | H35: х | I35: х | J35: х | K35: х | L35: х | M35: х | O35: х | P35: х | Q35: х | R35: х | S35: х | T35: х | U35: х
A36: СН1 | B36: х | C36: х | E36: х | G36: х | H36: х | I36: х | J36: х | K36: х | L36: х | M36: х | O36: х | P36: х | Q36: х | R36: х | S36: х | T36: х | U36: х
A37: СН2 | B37: х | C37: х | E37: х | G37: х | H37: х | I37: х | J37: х | K37: х | L37: х | M37: х | O37: х | P37: х | Q37: х | R37: х | S37: х | T37: х | U37: х
A38: НН | B38: х | C38: х | E38: х | G38: х | H38: х | I38: х | J38: х | K38: х | L38: х | M38: х | O38: х | P38: х | Q38: х | R38: х | S38: х | T38: х | U38: х
A39: Для проверки прибыли на капитальные вложения (аренда и лизинг объектов электросетевого хозяйства) | B39: =B10+B27 -> 0 | C39: =C10+C27 -> 0 | D39: =D10+D27 -> 0 | E39: =E10+E27 -> 0 | F39: =F10+F27 -> 0 | G39: х | H39: х | I39: х | J39: х | K39: х | L39: х | M39: х | N39: =N10+N27 -> 0 | O39: х | P39: х | Q39: х | R39: х | S39: х | T39: х | U39: х | V39: =V10+V27 -> 0
A41: Руководитель организации | D41: =#REF! -> 
A45: Примечание:
A46: Сведения должны соответствовать данным отраженным в электронном формате по активам организации

Sheet Услуги ФСК (hidden)
A2: Оплата услуг ПАО "ФСК ЕЭС"
A3: =#REF! -> 
L4: тыс. руб.
A5: Показатели | B5: 2021 год | F5: 2022 год | J5: 2023 год | P5: 2021 год
B6: Утверждено | C6: Факт | F6: Утверждено | G6: Ожидаемые | J6: По данным организации | M6: По данным экспертов | P6: Факт по данным экспертов
B7: год | C7: 1 полугодие | D7: 2 полугодие | E7: год | F7: год | G7: 1 полугодие | H7: 2 полугодие | I7: год | J7: 1 полугодие | K7: 2 полугодие | L7: год | M7: 1 полугодие | N7: 2 полугодие | O7: год
A8: 1 | B8: 2 | C8: 3 | D8: 4 | E8: 5 | F8: 6 | G8: 7 | H8: 8 | I8: 9 | J8: 10 | K8: 11 | L8: 12 | M8: 13 | N8: 14 | O8: 15 | P8: 16
A9: Расходы на содержание сетей, тыс. руб. | B9: х | C9: =O26 -> 0 | D9: =P26 -> 0 | E9: =D9+C9 -> 0 | F9: х | G9: =G10*G11*6/1000 -> 0 | H9: =H10*H11*6/1000 -> 0 | I9: =H9+G9 -> 0 | J9: =J10*J11*6/1000 -> 0 | K9: =K10*K11*6/1000 -> 0 | L9: =K9+J9 -> 0 | M9: =M10*M11*6/1000 -> 0 | N9: =N10*N11*6/1000 -> 0 | O9: =M9+N9 -> 0 | P9: х
A10: Заявленная мощность в точках присоединения к сетям ПАО "ФСК ЕЭС", МВт | B10: х | C10: =B24 -> 0 | D10: =H24 -> 0 | E10: х | F10: х | I10: х | L10: х | O10: х | P10: х
A11: Ставка тарифа услуги по передаче электрической энергии на содержание объектов электросетевого хозяйства, входящих в ЕНЭС, руб. МВт/мес. | B11: х | C11: =B25 -> 0 | D11: =H25 -> 0 | E11: х | F11: х | I11: х | L11: х | O11: х | P11: х
A12: Расходы на компенсацию потерь, тыс. руб. | B12: х | C12: =C13*C16 ->  | D12: =D13*D16 ->  | E12: =D12+C12 ->  | F12: х | G12: =G13*G16 -> 0 | H12: =H13*H16 -> 0 | I12: =G12+H12 -> 0 | J12: =J13*J16 -> 0 | K12: =K13*K16 -> 0 | L12: =J12+K12 -> 0 | M12: =M13*M16 -> 0 | N12: =N13*N16 -> 0 | O12: =M12+N12 -> 0 | P12: х
A13: Объем технологических потерь электрической энергии при ее передаче по ЕНЭС, млн. кВт.ч | B13: х | C13: =C14*C15% -> 0 | D13: =D14*D15% -> 0 | E13: =E14*E15% -> 0 | F13: х | G13: =G14*G15% -> 0 | H13: 0 | I13: 0 | J13: 0 | K13: 0 | L13: 0 | M13: 0 | N13: 0 | O13: 0 | P13: х
A14: Объем отпуска электроэнергии из сети ПАО "ФСК ЕЭС" в сеть организации, млн. кВт.ч | B14: х | C14: =O28/1000 -> 0 | D14: =P28/1000 -> 0 | E14: =D14+C14 -> 0 | F14: х | I14: =H14+G14 -> 0 | L14: =K14+J14 -> 0 | O14: =N14+M14 -> 0 | P14: х
A15: Норматив технологических потерь электрической энергии при ее передаче по ЕНЭС, применяемый к отпуску электроэнергии из сети ПАО "ФСК ЕЭС", % | B15: х | C15: =B29 -> 3.89 | D15: =B29 -> 3.89 | E15: 3.89 | F15: х | G15: 3.45 | H15: 3.45 | I15: 3.89 | J15: 3.45 | K15: 3.45 | L15: 3.89 | M15: 3.45 | N15: 3.45 | O15: 3.89 | P15: х
A16: Ставка тарифа на оплату нормативных технологических потерь электрической энергии в ЕНЭС, руб./МВт.ч | B16: х | C16: =O31 ->  | D16: =P31 ->  | E16: х | F16: х | I16: х | L16: х | O16: х | P16: х
A17: ИТОГО оплата услуг ПАО "ФСК ЕЭС" | C17: =C9+C12 ->  | D17: =D9+D12 ->  | E17: =IFERROR(E9+E12,0) -> 0 | G17: =G9+G12 -> 0 | H17: 0 | I17: 0 | J17: 0 | K17: 0 | L17: 0 | M17: 0 | N17: 0 | O17: 0
A19: Руководитель организации | D19: =#REF! -> 
A21: Факт по данным организации за 2021 год
B23: янв | C23: фев | D23: мар | E23: апр | F23: май | G23: июн | H23: июль | I23: авг | J23: сент | K23: окт | L23: ноя | M23: дек | N23: Итого | O23: 1 полуг | P23: 2 полуг
A24: Заявленная мощность в точках присоединения к сетям ПАО "ФСК ЕЭС", МВт | N24: х | O24: х | P24: х
A25: Ставка тарифа услуги по передаче электрической энергии на содержание объектов электросетевого хозяйства, входящих в ЕНЭС, руб. МВт/мес. | C25: =B25 -> 0 | D25: =C25 -> 0 | E25: =D25 -> 0 | F25: =E25 -> 0 | G25: =F25 -> 0 | I25: =H25 -> 0 | J25: =I25 -> 0 | K25: =J25 -> 0 | L25: =K25 -> 0 | M25: =L25 -> 0 | N25: х | O25: х | P25: х
A26: Стоимость услуги по передаче электрической энергии на содержание объектов элкутросетевого хозяйства, тыс. руб. | B26: =B24*B25/1000 -> 0 | C26: =C24*C25/1000 -> 0 | D26: 0 | E26: 0 | F26: 0 | G26: 0 | H26: 0 | I26: 0 | J26: 0 | K26: 0 | L26: 0 | M26: =M24*M25/1000 -> 0 | N26: =SUM(B26:M26) -> 0 | O26: =SUM(B26:G26) -> 0 | P26: =SUM(H26:M26) -> 0
B27: янв | C27: фев | D27: мар | E27: апр | F27: май | G27: июн | H27: июль | I27: авг | J27: сент | K27: окт | L27: ноя | M27: дек | N27: Итого | O27: 1 полуг | P27: 2 полуг
A28: Отпуск электрической энергии из сетей ПАО "ФСК ЕЭС" напряжением 220 кВ и ниже, МВт.ч | N28: =SUM(B28:M28) -> 0 | O28: =SUM(B28:G28) -> 0 | P28: =SUM(H28:M28) -> 0
A29: Норматив технологических потерь электрической энергии при ее передаче по ЕНЭС, применяемый к отпуску электроэнергии из сети ПАО "ФСК ЕЭС" , % | B29: 3.89 | C29: =B29 -> 3.89 | D29: =C29 -> 3.89 | E29: 3.89 | F29: 3.89 | G29: 3.89 | H29: 3.89 | I29: 3.89 | J29: 3.89 | K29: 3.89 | L29: 3.89 | M29: =L29 -> 3.89 | N29: х | O29: х | P29: х
A30: Объем технологических потерь электрической энергии при ее передаче по ЕНЭС, МВт.ч | B30: =ROUND(B28*B29/100,3) -> 0 | C30: =ROUND(C28*C29/100,3) -> 0 | D30: 0 | E30: 0 | F30: 0 | G30: 0 | H30: 0 | I30: 0 | J30: 0 | K30: 0 | L30: 0 | M30: =ROUND(M28*M29/100,3) -> 0 | N30: =SUM(B30:M30) -> 0 | O30: =SUM(B30:G30) -> 0 | P30: =SUM(H30:M30) -> 0
A31: Ставка тарифа на оплату нормативных технологических потерь электрической энергии в ЕНЭС, руб./МВт.ч | N31: =N32/N30*1000 ->  | O31: =O32/O30*1000 ->  | P31: =P32/P30*1000 -> 
A32: Расходы на компенсацию потерь, тыс. руб. | B32: =B30*B31/1000 -> 0 | C32: =C30*C31/1000 -> 0 | D32: 0 | E32: 0 | F32: 0 | G32: 0 | H32: 0 | I32: 0 | J32: 0 | K32: 0 | L32: 0 | M32: =M30*M31/1000 -> 0 | N32: =SUM(B32:M32) -> 0 | O32: =SUM(B32:G32) -> 0 | P32: =SUM(H32:M32) -> 0
A33: Итого расходы на услуги ФСК, тыс. руб. | B33: =B26+B32 -> 0 | C33: =C26+C32 -> 0 | D33: 0 | E33: 0 | F33: 0 | G33: 0 | H33: 0 | I33: 0 | J33: 0 | K33: 0 | L33: 0 | M33: =M26+M32 -> 0 | N33: =N26+N32 -> 0 | O33: =O26+O32 -> 0 | P33: =P26+P32 -> 0

Sheet СВОД по % по рассрочке (hidden)
B2: Выпадающие доходы сетевой организации от выплаты процентов по кредитным договорам, связанным с рассрочкой по оплате субъектами малого и среднего предпринимательства технологического присоединения энергопринимающих устройств максимальной мощностью свыше 15 кВт и до 150 кВт включительно в 2023 году
A4: =#REF! -> 
A6: N п/п | B6: Информация о договоре технологического присоединения (Контрагент (наименование), № договора ТП, Дата заключения договора) | F6: Ставка рефинансирования Центрального банка Российской Федерации | G6: Год закрытия | H6: Квартал закрытия | I6: Сумма договора,тыс. руб. с НДС | J6: Размер расходов, связанных с предоставлением беспроцентной рассрочки в 2023 году, тыс. руб.
A9: 1 | B9: 2 | F9: 3 | G9: 4 | H9: 5 | I9: 6 | J9: 7
A10: 1 | B10: =Заявитель1!A4 -> 0 | F10: =Заявитель1!B31 -> 0 | G10: =Заявитель1!B34 -> 0 | H10: =Заявитель1!B32 -> 0 | I10: =Заявитель1!B33 -> 0 | J10: =Заявитель1!G36 -> 0
A11: 2 | B11: =Заявитель2!A4 -> 0 | F11: =Заявитель2!B31 -> 0 | G11: =Заявитель2!B34 -> 0 | H11: =Заявитель2!B32 -> 0 | I11: =Заявитель2!B33 -> 0 | J11: =Заявитель2!G36 -> 0
A12: 3 | B12: =Заявитель3!A4 -> 0 | F12: =Заявитель3!B31 -> 0 | G12: =Заявитель3!B34 -> 0 | H12: =Заявитель3!B32 -> 0 | I12: =Заявитель3!B33 -> 0 | J12: =Заявитель3!G36 -> 0
A13: 4 | B13: =Заявитель4!A4 -> 0 | F13: =Заявитель4!B31 -> 0 | G13: =Заявитель4!B34 -> 0 | H13: =Заявитель4!B32 -> 0 | I13: =Заявитель4!B33 -> 0 | J13: =Заявитель4!G36 -> 0
A17: Добавить
A18: ИТОГО | I18: =SUM(I10:I17) -> 0 | J18: =SUM(J10:J17) -> 0
B20: Свод по кварталам | C20: Сумма по договорам
B21: 1 | C21: =SUMIF(H$6:H$22,B21,I$6:I$22) -> 0
B22: 2 | C22: =SUMIF(H$6:H$22,B22,I$6:I$22) -> 0
B23: 3 | C23: =SUMIF(H$6:H$22,B23,I$6:I$22) -> 0
B24: 4 | C24: =SUMIF(H$6:H$22,B24,I$6:I$22) -> 0
B25: ГОД | C25: =SUM(C21:C24) -> 0
C26: =C25-I18 -> 0
F28: Приложение 2 к Методическим указаниям, утвержденным приказом ФСТ от 11.09.2014 г. №215-э/1
A32: Таблица 1. Расчет суммарного размера платы за технологическое присоединение, подлежащего беспроцентной рассрочке
B34: =#REF! -> 
Q35: тыс. руб. с НДС
A36: N п/п | B36: Показатель | F36: Фактические данные за предыдущий период регулирования | K36: Ожидаемые данные за текущий период регулирования | P36: Плановые показатели на следующий период регулирования
F37: 1 кв. | G37: 2 кв. | H37: 3 кв. | I37: 4 кв. | J37: всего за год | K37: 1 кв. | L37: 2 кв. | M37: 3 кв. | N37: 4 кв. | O37: всего за год | P37: 1 кв. | Q37: 2 кв. | R37: 3 кв. | S37: 4 кв. | T37: всего за год
A38: 1 | B38: Суммарный размер платы за технологическое присоединение, тыс. руб., в т.ч.: | J38: =SUM(F38:I38) -> 0 | O38: =SUM(K38:N38) -> 0 | P38: =C21 -> 0 | Q38: =C22 -> 0 | R38: =C23 -> 0 | S38: =C24 -> 0 | T38: =SUM(P38:S38) -> 0
A39: 2 | B39: Суммарный размер платы за технологическое присоединение, подлежащий беспроцентной рассрочке | J39: =SUM(F39:I39) -> 0 | O39: =SUM(K39:N39) -> 0 | P39: =P38*0.95 -> 0 | Q39: =Q38*0.95 -> 0 | R39: =R38*0.95 -> 0 | S39: =S38*0.95 -> 0 | T39: =T38*0.95 -> 0
B41: Руководитель организации | D41: =#REF! -> 
A43: Примечание:
A44: 1) Суммарный размер платы за технологическое присоединение (п. 1) за каждый квартал следующего расчетного периода регулирования представляет собой прогнозную величину платы за технологическое присоединение для заявителей, обращающихся за беспроцентной рассрочкой, определенную на основе фактических данных о заявителях, обратившихся за рассрочкой за последний год, но не ниже документально подтвержденных данных о заявителях, обратившихся за рассрочкой на следующий период регулирования.
A45: 2) Суммарный размер платы за технологическое присоединение, подлежащий беспроцентной рассрочке (п. 2), за каждый квартал определяется как суммарный размер платы за технологическое присоединение (п. 1) за каждый квартал, умноженный на 0,95.

Sheet Заявитель1 (hidden)
C1: Приложение 2 к Методическим указаниям, утвержденным приказом ФСТ от 11.09.2014 г. №215-э/1
A3: Расчет размера расходов, связанных с предоставлением беспроцентной рассрочки (для конкретного заявителя)
B5: (Контрагент (наименование), № договора ТП, Дата заключения договора)
A7: N п/п | B7: Квартал, на который рассчитывается размер расходов, связанных с предоставлением беспроцентной рассрочки | C7: Расходы, связанные с предоставлением беспроцентной рассрочки, тыс. руб. (с учетом НДС) | H7: Номер квартала i
C8: в отношении суммарного размера платы за технологическое присоединение в 1 квартале | D8: в отношении суммарного размера платы за технологическое присоединение во 2 квартале | E8: в отношении суммарного размера платы за технологическое присоединение в 3 квартале | F8: в отношении суммарного размера платы за технологическое присоединение в 4 квартале | G8: всего в год
A9: 1 | B9: =CONCATENATE("1 год (",$B$34,"г.):") -> 1 год (г.): | C9: =SUM(C10:C13) -> 0 | D9: =SUM(D10:D13) -> 0 | E9: =SUM(E10:E13) -> 0 | F9: =SUM(F10:F13) -> 0 | G9: =SUM(C9:F9) -> 0
A10: 1.1. | B10: 1 квартал | C10: =IF($H10>=$B$32,Заявитель1!$B$33*0.95*((12+$B$32-$H10)/12)*($B$31/4),0) -> 0 | G10: 0 | H10: 1
A11: 1.2. | B11: 2 квартал | D11: =IF($H11>=$B$32,Заявитель1!$B$33*0.95*((12+$B$32-$H11)/12)*($B$31/4),0) -> 0 | G11: 0 | H11: 2
A12: 1.3. | B12: 3 квартал | E12: =IF($H12>=$B$32,Заявитель1!$B$33*0.95*((12+$B$32-$H12)/12)*($B$31/4),0) -> 0 | G12: 0 | H12: 3
A13: 1.4. | B13: 4 квартал | F13: =IF($H13>=$B$32,Заявитель1!$B$33*0.95*((12+$B$32-$H13)/12)*($B$31/4),0) -> 0 | G13: 0 | H13: 4
A14: 2 | B14: =CONCATENATE("1 год (",$B$34+1,"г.):") -> 1 год (1г.): | C14: =SUM(C15:C18) -> 0 | D14: =SUM(D15:D18) -> 0 | E14: =SUM(E15:E18) -> 0 | F14: =SUM(F15:F18) -> 0 | G14: 0
A15: 2.1. | B15: 5 квартал | C15: =Заявитель1!$B$33*0.95*((12+$B$32-$H15)/12)*($B$31/4) -> 0 | G15: 0 | H15: 5
A16: 2.2. | B16: 6 квартал | D16: =Заявитель1!$B$33*0.95*((12+$B$32-$H16)/12)*($B$31/4) -> 0 | G16: 0 | H16: 6
A17: 2.3. | B17: 7 квартал | E17: =Заявитель1!$B$33*0.95*((12+$B$32-$H17)/12)*($B$31/4) -> 0 | G17: 0 | H17: 7
A18: 2.4. | B18: 8 квартал | F18: =Заявитель1!$B$33*0.95*((12+$B$32-$H18)/12)*($B$31/4) -> 0 | G18: 0 | H18: 8
A19: 3 | B19: =CONCATENATE("1 год (",$B$34+2,"г.):") -> 1 год (2г.): | C19: =SUM(C20:C23) -> 0 | D19: =SUM(D20:D23) -> 0 | E19: =SUM(E20:E23) -> 0 | F19: =SUM(F20:F23) -> 0 | G19: 0
A20: 3.1. | B20: 9 квартал | C20: =Заявитель1!$B$33*0.95*((12+$B$32-$H20)/12)*($B$31/4) -> 0 | G20: 0 | H20: 9
A21: 3.2. | B21: 10 квартал | D21: =Заявитель1!$B$33*0.95*((12+$B$32-$H21)/12)*($B$31/4) -> 0 | G21: 0 | H21: 10
A22: 3.3. | B22: 11 квартал | E22: =Заявитель1!$B$33*0.95*((12+$B$32-$H22)/12)*($B$31/4) -> 0 | G22: 0 | H22: 11
A23: 3.4. | B23: 12 квартал | F23: =Заявитель1!$B$33*0.95*((12+$B$32-$H23)/12)*($B$31/4) -> 0 | G23: 0 | H23: 12
A24: 4 | B24: =CONCATENATE("1 год (",$B$34+3,"г.):") -> 1 год (3г.): | C24: =SUM(C25:C27) -> 0 | D24: =SUM(D25:D27) -> 0 | E24: =SUM(E25:E27) -> 0 | F24: =SUM(F25:F27) -> 0 | G24: 0
A25: 4.1. | B25: 13 квартал | C25: =Заявитель1!$B$33*0.95*((12+$B$32-$H25)/12)*($B$31/4) -> 0 | G25: 0 | H25: 13
A26: 4.2. | B26: 14 квартал | D26: =IF((Заявитель1!$B$33*0.95*((12+$B$32-$H26)/12)*($B$31/4))<0,0,Заявитель1!$B$33*0.95*((12+$B$32-$H26)/12)*($B$31/4)) -> 0 | G26: 0 | H26: 14
A27: 4.3. | B27: 15 квартал | E27: =IF((Заявитель1!$B$33*0.95*((12+$B$32-$H27)/12)*($B$31/4))<0,0,Заявитель1!$B$33*0.95*((12+$B$32-$H27)/12)*($B$31/4)) -> 0 | G27: 0 | H27: 15
A28: 5 | B28: Итого | C28: =C9+C14+C19+C24 -> 0 | D28: =D9+D14+D19+D24 -> 0 | E28: =E9+E14+E19+E24 -> 0 | F28: =F9+F14+F19+F24 -> 0 | G28: =G9+G14+G19+G24 -> 0
A32: k
A34: Год закрытия договора
A36: Размера расходов, связанных с предоставлением беспроцентной рассрочки в 2023 году | G36: =IF(B34<2019,0,IF(B34=2019,G24,IF(B34=2021,G19,IF(B34=2022,G14)))) -> 0 | H36: тыс. руб.
A38: Размер расходов, связанных с предоставлением беспроцентной рассрочки, в i-м квартале в течение трехлетнего периода предоставления беспроцентной рассрочки рассчитывается по формуле (1):
D40: , (1)
A42: где:
A43: - суммарный размер платы за технологическое присоединение, начисляемый заявителям, которым предоставляется рассрочка, в квартале k периода регулирования (тыс. руб.);
A44: k - номер квартала по порядку в периоде регулирования, в который начисляется размер платы за технологическое присоединение (равен от 1 до 4);
A45: i - номер квартала по порядку, начиная с момента начисления размера платы за технологическое присоединение с условием предоставления беспроцентной рассрочки в квартале k, с учетом квартала, в котором произведены начисления, в течение трехлетнего периода предоставления беспроцентной рассрочки (равен от k до 12 + k - 1);
A46: - ставка рефинансирования Центрального банка Российской Федерации на дату представления сетевой организацией заявки на установление размера платы за технологическое присоединение в регулирующий орган.
A47: В случае отклонения фактического значения процентной ставки по кредитам, связанным с рассрочкой по оплате технологического присоединения, от ставки рефинансирования Центрального банка Российской Федерации, при расчете фактического размера расходов, связанных с предоставлением беспроцентной рассрочки, применяется величина процентной ставки в соответствии с пунктом 87 Основ ценообразования.
A49: Примечание:
A50: 1) Периодом предоставления беспроцентной рассрочки считается 3 года.
A51: 2) Размер расходов, связанных с предоставлением беспроцентной рассрочки, в каждый квартал периода регулирования в течение трехлетнего периода предоставления беспроцентной рассрочки в отношении планируемого к получению (фактически полученного) от заявителей суммарного размера платы за технологическое присоединение, определяется в соответствии с формулой (1) Методических указаний по определению выпадающих доходов, связанных с осуществлением технологического присоединения к электрическим сетям.
A52: 3) При расчете планируемых значений показателей при заполнении таблиц 1 и 2 применяется планируемая к получению величина суммарного размера платы за технологическое присоединение, подлежащего беспроцентной рассрочке.
A53: 4) При расчете фактических значений показателей при заполнении таблиц 1 и 2 применяется суммарная плата за технологическое присоединение, начисленная с беспроцентной рассрочкой в соответствии с заключенными договорами об осуществлении технологического присоединения к электрическим сетям.

Sheet Заявитель2 (hidden)
C1: Приложение 2 к Методическим указаниям, утвержденным приказом ФСТ от 11.09.2014 г. №215-э/1
A3: Расчет размера расходов, связанных с предоставлением беспроцентной рассрочки (для конкретного заявителя)
B5: (Контрагент (наименование), № договора ТП, Дата заключения договора)
A7: N п/п | B7: Квартал, на который рассчитывается размер расходов, связанных с предоставлением беспроцентной рассрочки | C7: Расходы, связанные с предоставлением беспроцентной рассрочки, тыс. руб. (с учетом НДС) | H7: Номер квартала i
C8: в отношении суммарного размера платы за технологическое присоединение в 1 квартале | D8: в отношении суммарного размера платы за технологическое присоединение во 2 квартале | E8: в отношении суммарного размера платы за технологическое присоединение в 3 квартале | F8: в отношении суммарного размера платы за технологическое присоединение в 4 квартале | G8: всего в год
A9: 1 | B9: =CONCATENATE("1 год (",$B$34,"г.):") -> 1 год (г.): | C9: =SUM(C10:C13) -> 0 | D9: =SUM(D10:D13) -> 0 | E9: =SUM(E10:E13) -> 0 | F9: =SUM(F10:F13) -> 0 | G9: =SUM(C9:F9) -> 0
A10: 1.1. | B10: 1 квартал | C10: =IF($H10>=$B$32,Заявитель2!$B$33*0.95*((12+$B$32-$H10)/12)*($B$31/4),0) -> 0 | G10: 0 | H10: 1
A11: 1.2. | B11: 2 квартал | D11: =IF($H11>=$B$32,Заявитель2!$B$33*0.95*((12+$B$32-$H11)/12)*($B$31/4),0) -> 0 | G11: 0 | H11: 2
A12: 1.3. | B12: 3 квартал | E12: =IF($H12>=$B$32,Заявитель2!$B$33*0.95*((12+$B$32-$H12)/12)*($B$31/4),0) -> 0 | G12: 0 | H12: 3
A13: 1.4. | B13: 4 квартал | F13: =IF($H13>=$B$32,Заявитель2!$B$33*0.95*((12+$B$32-$H13)/12)*($B$31/4),0) -> 0 | G13: 0 | H13: 4
A14: 2 | B14: =CONCATENATE("1 год (",$B$34+1,"г.):") -> 1 год (1г.): | C14: =SUM(C15:C18) -> 0 | D14: =SUM(D15:D18) -> 0 | E14: =SUM(E15:E18) -> 0 | F14: =SUM(F15:F18) -> 0 | G14: 0
A15: 2.1. | B15: 5 квартал | C15: =Заявитель2!$B$33*0.95*((12+$B$32-$H15)/12)*($B$31/4) -> 0 | G15: 0 | H15: 5
A16: 2.2. | B16: 6 квартал | D16: =Заявитель2!$B$33*0.95*((12+$B$32-$H16)/12)*($B$31/4) -> 0 | G16: 0 | H16: 6
A17: 2.3. | B17: 7 квартал | E17: =Заявитель2!$B$33*0.95*((12+$B$32-$H17)/12)*($B$31/4) -> 0 | G17: 0 | H17: 7
A18: 2.4. | B18: 8 квартал | F18: =Заявитель2!$B$33*0.95*((12+$B$32-$H18)/12)*($B$31/4) -> 0 | G18: 0 | H18: 8
A19: 3 | B19: =CONCATENATE("1 год (",$B$34+2,"г.):") -> 1 год (2г.): | C19: =SUM(C20:C23) -> 0 | D19: =SUM(D20:D23) -> 0 | E19: =SUM(E20:E23) -> 0 | F19: =SUM(F20:F23) -> 0 | G19: 0
A20: 3.1. | B20: 9 квартал | C20: =Заявитель2!$B$33*0.95*((12+$B$32-$H20)/12)*($B$31/4) -> 0 | G20: 0 | H20: 9
A21: 3.2. | B21: 10 квартал | D21: =Заявитель2!$B$33*0.95*((12+$B$32-$H21)/12)*($B$31/4) -> 0 | G21: 0 | H21: 10
A22: 3.3. | B22: 11 квартал | E22: =Заявитель2!$B$33*0.95*((12+$B$32-$H22)/12)*($B$31/4) -> 0 | G22: 0 | H22: 11
A23: 3.4. | B23: 12 квартал | F23: =Заявитель2!$B$33*0.95*((12+$B$32-$H23)/12)*($B$31/4) -> 0 | G23: 0 | H23: 12
A24: 4 | B24: =CONCATENATE("1 год (",$B$34+3,"г.):") -> 1 год (3г.): | C24: =SUM(C25:C27) -> 0 | D24: =SUM(D25:D27) -> 0 | E24: =SUM(E25:E27) -> 0 | F24: =SUM(F25:F27) -> 0 | G24: 0
A25: 4.1. | B25: 13 квартал | C25: =Заявитель2!$B$33*0.95*((12+$B$32-$H25)/12)*($B$31/4) -> 0 | G25: 0 | H25: 13
A26: 4.2. | B26: 14 квартал | D26: =IF((Заявитель2!$B$33*0.95*((12+$B$32-$H26)/12)*($B$31/4))<0,0,Заявитель2!$B$33*0.95*((12+$B$32-$H26)/12)*($B$31/4)) -> 0 | G26: 0 | H26: 14
A27: 4.3. | B27: 15 квартал | E27: =IF((Заявитель2!$B$33*0.95*((12+$B$32-$H27)/12)*($B$31/4))<0,0,Заявитель2!$B$33*0.95*((12+$B$32-$H27)/12)*($B$31/4)) -> 0 | G27: 0 | H27: 15
A28: 5 | B28: Итого | C28: =C9+C14+C19+C24 -> 0 | D28: =D9+D14+D19+D24 -> 0 | E28: =E9+E14+E19+E24 -> 0 | F28: =F9+F14+F19+F24 -> 0 | G28: =G9+G14+G19+G24 -> 0
A32: k
A34: Год закрытия договора
A36: Размера расходов, связанных с предоставлением беспроцентной рассрочки в 2023 году | G36: =IF(B34<2019,0,IF(B34=2019,G24,IF(B34=2021,G19,IF(B34=2022,G14)))) -> 0 | H36: тыс. руб.
A38: Размер расходов, связанных с предоставлением беспроцентной рассрочки, в i-м квартале в течение трехлетнего периода предоставления беспроцентной рассрочки рассчитывается по формуле (1):
D40: , (1)
A42: где:
A43: - суммарный размер платы за технологическое присоединение, начисляемый заявителям, которым предоставляется рассрочка, в квартале k периода регулирования (тыс. руб.);
A44: k - номер квартала по порядку в периоде регулирования, в который начисляется размер платы за технологическое присоединение (равен от 1 до 4);
A45: i - номер квартала по порядку, начиная с момента начисления размера платы за технологическое присоединение с условием предоставления беспроцентной рассрочки в квартале k, с учетом квартала, в котором произведены начисления, в течение трехлетнего периода предоставления беспроцентной рассрочки (равен от k до 12 + k - 1);
A46: - ставка рефинансирования Центрального банка Российской Федерации на дату представления сетевой организацией заявки на установление размера платы за технологическое присоединение в регулирующий орган.
A47: В случае отклонения фактического значения процентной ставки по кредитам, связанным с рассрочкой по оплате технологического присоединения, от ставки рефинансирования Центрального банка Российской Федерации, при расчете фактического размера расходов, связанных с предоставлением беспроцентной рассрочки, применяется величина процентной ставки в соответствии с пунктом 87 Основ ценообразования.
A49: Примечание:
A50: 1) Периодом предоставления беспроцентной рассрочки считается 3 года.
A51: 2) Размер расходов, связанных с предоставлением беспроцентной рассрочки, в каждый квартал периода регулирования в течение трехлетнего периода предоставления беспроцентной рассрочки в отношении планируемого к получению (фактически полученного) от заявителей суммарного размера платы за технологическое присоединение, определяется в соответствии с формулой (1) Методических указаний по определению выпадающих доходов, связанных с осуществлением технологического присоединения к электрическим сетям.
A52: 3) При расчете планируемых значений показателей при заполнении таблиц 1 и 2 применяется планируемая к получению величина суммарного размера платы за технологическое присоединение, подлежащего беспроцентной рассрочке.
A53: 4) При расчете фактических значений показателей при заполнении таблиц 1 и 2 применяется суммарная плата за технологическое присоединение, начисленная с беспроцентной рассрочкой в соответствии с заключенными договорами об осуществлении технологического присоединения к электрическим сетям.

Sheet Заявитель3 (hidden)
C1: Приложение 2 к Методическим указаниям, утвержденным приказом ФСТ от 11.09.2014 г. №215-э/1
A3: Расчет размера расходов, связанных с предоставлением беспроцентной рассрочки (для конкретного заявителя)
B5: (Контрагент (наименование), № договора ТП, Дата заключения договора)
A7: N п/п | B7: Квартал, на который рассчитывается размер расходов, связанных с предоставлением беспроцентной рассрочки | C7: Расходы, связанные с предоставлением беспроцентной рассрочки, тыс. руб. (с учетом НДС) | H7: Номер квартала i
C8: в отношении суммарного размера платы за технологическое присоединение в 1 квартале | D8: в отношении суммарного размера платы за технологическое присоединение во 2 квартале | E8: в отношении суммарного размера платы за технологическое присоединение в 3 квартале | F8: в отношении суммарного размера платы за технологическое присоединение в 4 квартале | G8: всего в год
A9: 1 | B9: =CONCATENATE("1 год (",$B$34,"г.):") -> 1 год (г.): | C9: =SUM(C10:C13) -> 0 | D9: =SUM(D10:D13) -> 0 | E9: =SUM(E10:E13) -> 0 | F9: =SUM(F10:F13) -> 0 | G9: =SUM(C9:F9) -> 0
A10: 1.1. | B10: 1 квартал | C10: =IF($H10>=$B$32,Заявитель3!$B$33*0.95*((12+$B$32-$H10)/12)*($B$31/4),0) -> 0 | G10: 0 | H10: 1
A11: 1.2. | B11: 2 квартал | D11: =IF($H11>=$B$32,Заявитель3!$B$33*0.95*((12+$B$32-$H11)/12)*($B$31/4),0) -> 0 | G11: 0 | H11: 2
A12: 1.3. | B12: 3 квартал | E12: =IF($H12>=$B$32,Заявитель3!$B$33*0.95*((12+$B$32-$H12)/12)*($B$31/4),0) -> 0 | G12: 0 | H12: 3
A13: 1.4. | B13: 4 квартал | F13: =IF($H13>=$B$32,Заявитель3!$B$33*0.95*((12+$B$32-$H13)/12)*($B$31/4),0) -> 0 | G13: 0 | H13: 4
A14: 2 | B14: =CONCATENATE("1 год (",$B$34+1,"г.):") -> 1 год (1г.): | C14: =SUM(C15:C18) -> 0 | D14: =SUM(D15:D18) -> 0 | E14: =SUM(E15:E18) -> 0 | F14: =SUM(F15:F18) -> 0 | G14: 0
A15: 2.1. | B15: 5 квартал | C15: =Заявитель3!$B$33*0.95*((12+$B$32-$H15)/12)*($B$31/4) -> 0 | G15: 0 | H15: 5
A16: 2.2. | B16: 6 квартал | D16: =Заявитель3!$B$33*0.95*((12+$B$32-$H16)/12)*($B$31/4) -> 0 | G16: 0 | H16: 6
A17: 2.3. | B17: 7 квартал | E17: =Заявитель3!$B$33*0.95*((12+$B$32-$H17)/12)*($B$31/4) -> 0 | G17: 0 | H17: 7
A18: 2.4. | B18: 8 квартал | F18: =Заявитель3!$B$33*0.95*((12+$B$32-$H18)/12)*($B$31/4) -> 0 | G18: 0 | H18: 8
A19: 3 | B19: =CONCATENATE("1 год (",$B$34+2,"г.):") -> 1 год (2г.): | C19: =SUM(C20:C23) -> 0 | D19: =SUM(D20:D23) -> 0 | E19: =SUM(E20:E23) -> 0 | F19: =SUM(F20:F23) -> 0 | G19: 0
A20: 3.1. | B20: 9 квартал | C20: =Заявитель3!$B$33*0.95*((12+$B$32-$H20)/12)*($B$31/4) -> 0 | G20: 0 | H20: 9
A21: 3.2. | B21: 10 квартал | D21: =Заявитель3!$B$33*0.95*((12+$B$32-$H21)/12)*($B$31/4) -> 0 | G21: 0 | H21: 10
A22: 3.3. | B22: 11 квартал | E22: =Заявитель3!$B$33*0.95*((12+$B$32-$H22)/12)*($B$31/4) -> 0 | G22: 0 | H22: 11
A23: 3.4. | B23: 12 квартал | F23: =Заявитель3!$B$33*0.95*((12+$B$32-$H23)/12)*($B$31/4) -> 0 | G23: 0 | H23: 12
A24: 4 | B24: =CONCATENATE("1 год (",$B$34+3,"г.):") -> 1 год (3г.): | C24: =SUM(C25:C27) -> 0 | D24: =SUM(D25:D27) -> 0 | E24: =SUM(E25:E27) -> 0 | F24: =SUM(F25:F27) -> 0 | G24: 0
A25: 4.1. | B25: 13 квартал | C25: =Заявитель3!$B$33*0.95*((12+$B$32-$H25)/12)*($B$31/4) -> 0 | G25: 0 | H25: 13
A26: 4.2. | B26: 14 квартал | D26: =IF((Заявитель3!$B$33*0.95*((12+$B$32-$H26)/12)*($B$31/4))<0,0,Заявитель3!$B$33*0.95*((12+$B$32-$H26)/12)*($B$31/4)) -> 0 | G26: 0 | H26: 14
A27: 4.3. | B27: 15 квартал | E27: =IF((Заявитель3!$B$33*0.95*((12+$B$32-$H27)/12)*($B$31/4))<0,0,Заявитель3!$B$33*0.95*((12+$B$32-$H27)/12)*($B$31/4)) -> 0 | G27: 0 | H27: 15
A28: 5 | B28: Итого | C28: =C9+C14+C19+C24 -> 0 | D28: =D9+D14+D19+D24 -> 0 | E28: =E9+E14+E19+E24 -> 0 | F28: =F9+F14+F19+F24 -> 0 | G28: =G9+G14+G19+G24 -> 0
A32: k
A34: Год закрытия договора
A36: Размера расходов, связанных с предоставлением беспроцентной рассрочки в 2023 году | G36: =IF(B34<2019,0,IF(B34=2019,G24,IF(B34=2021,G19,IF(B34=2022,G14)))) -> 0 | H36: тыс. руб.
A38: Размер расходов, связанных с предоставлением беспроцентной рассрочки, в i-м квартале в течение трехлетнего периода предоставления беспроцентной рассрочки рассчитывается по формуле (1):
D40: , (1)
A42: где:
A43: - суммарный размер платы за технологическое присоединение, начисляемый заявителям, которым предоставляется рассрочка, в квартале k периода регулирования (тыс. руб.);
A44: k - номер квартала по порядку в периоде регулирования, в который начисляется размер платы за технологическое присоединение (равен от 1 до 4);
A45: i - номер квартала по порядку, начиная с момента начисления размера платы за технологическое присоединение с условием предоставления беспроцентной рассрочки в квартале k, с учетом квартала, в котором произведены начисления, в течение трехлетнего периода предоставления беспроцентной рассрочки (равен от k до 12 + k - 1);
A46: - ставка рефинансирования Центрального банка Российской Федерации на дату представления сетевой организацией заявки на установление размера платы за технологическое присоединение в регулирующий орган.
A47: В случае отклонения фактического значения процентной ставки по кредитам, связанным с рассрочкой по оплате технологического присоединения, от ставки рефинансирования Центрального банка Российской Федерации, при расчете фактического размера расходов, связанных с предоставлением беспроцентной рассрочки, применяется величина процентной ставки в соответствии с пунктом 87 Основ ценообразования.
A49: Примечание:
A50: 1) Периодом предоставления беспроцентной рассрочки считается 3 года.
A51: 2) Размер расходов, связанных с предоставлением беспроцентной рассрочки, в каждый квартал периода регулирования в течение трехлетнего периода предоставления беспроцентной рассрочки в отношении планируемого к получению (фактически полученного) от заявителей суммарного размера платы за технологическое присоединение, определяется в соответствии с формулой (1) Методических указаний по определению выпадающих доходов, связанных с осуществлением технологического присоединения к электрическим сетям.
A52: 3) При расчете планируемых значений показателей при заполнении таблиц 1 и 2 применяется планируемая к получению величина суммарного размера платы за технологическое присоединение, подлежащего беспроцентной рассрочке.
A53: 4) При расчете фактических значений показателей при заполнении таблиц 1 и 2 применяется суммарная плата за технологическое присоединение, начисленная с беспроцентной рассрочкой в соответствии с заключенными договорами об осуществлении технологического присоединения к электрическим сетям.

Sheet Заявитель4 (hidden)
C1: Приложение 2 к Методическим указаниям, утвержденным приказом ФСТ от 11.09.2014 г. №215-э/1
A3: Расчет размера расходов, связанных с предоставлением беспроцентной рассрочки (для конкретного заявителя)
B5: (Контрагент (наименование), № договора ТП, Дата заключения договора)
A7: N п/п | B7: Квартал, на который рассчитывается размер расходов, связанных с предоставлением беспроцентной рассрочки | C7: Расходы, связанные с предоставлением беспроцентной рассрочки, тыс. руб. (с учетом НДС) | H7: Номер квартала i
C8: в отношении суммарного размера платы за технологическое присоединение в 1 квартале | D8: в отношении суммарного размера платы за технологическое присоединение во 2 квартале | E8: в отношении суммарного размера платы за технологическое присоединение в 3 квартале | F8: в отношении суммарного размера платы за технологическое присоединение в 4 квартале | G8: всего в год
A9: 1 | B9: =CONCATENATE("1 год (",$B$34,"г.):") -> 1 год (г.): | C9: =SUM(C10:C13) -> 0 | D9: =SUM(D10:D13) -> 0 | E9: =SUM(E10:E13) -> 0 | F9: =SUM(F10:F13) -> 0 | G9: =SUM(C9:F9) -> 0
A10: 1.1. | B10: 1 квартал | C10: =IF($H10>=$B$32,Заявитель4!$B$33*0.95*((12+$B$32-$H10)/12)*($B$31/4),0) -> 0 | G10: 0 | H10: 1
A11: 1.2. | B11: 2 квартал | D11: =IF($H11>=$B$32,Заявитель4!$B$33*0.95*((12+$B$32-$H11)/12)*($B$31/4),0) -> 0 | G11: 0 | H11: 2
A12: 1.3. | B12: 3 квартал | E12: =IF($H12>=$B$32,Заявитель4!$B$33*0.95*((12+$B$32-$H12)/12)*($B$31/4),0) -> 0 | G12: 0 | H12: 3
A13: 1.4. | B13: 4 квартал | F13: =IF($H13>=$B$32,Заявитель4!$B$33*0.95*((12+$B$32-$H13)/12)*($B$31/4),0) -> 0 | G13: 0 | H13: 4
A14: 2 | B14: =CONCATENATE("1 год (",$B$34+1,"г.):") -> 1 год (1г.): | C14: =SUM(C15:C18) -> 0 | D14: =SUM(D15:D18) -> 0 | E14: =SUM(E15:E18) -> 0 | F14: =SUM(F15:F18) -> 0 | G14: 0
A15: 2.1. | B15: 5 квартал | C15: =Заявитель4!$B$33*0.95*((12+$B$32-$H15)/12)*($B$31/4) -> 0 | G15: 0 | H15: 5
A16: 2.2. | B16: 6 квартал | D16: =Заявитель4!$B$33*0.95*((12+$B$32-$H16)/12)*($B$31/4) -> 0 | G16: 0 | H16: 6
A17: 2.3. | B17: 7 квартал | E17: =Заявитель4!$B$33*0.95*((12+$B$32-$H17)/12)*($B$31/4) -> 0 | G17: 0 | H17: 7
A18: 2.4. | B18: 8 квартал | F18: =Заявитель4!$B$33*0.95*((12+$B$32-$H18)/12)*($B$31/4) -> 0 | G18: 0 | H18: 8
A19: 3 | B19: =CONCATENATE("1 год (",$B$34+2,"г.):") -> 1 год (2г.): | C19: =SUM(C20:C23) -> 0 | D19: =SUM(D20:D23) -> 0 | E19: =SUM(E20:E23) -> 0 | F19: =SUM(F20:F23) -> 0 | G19: 0
A20: 3.1. | B20: 9 квартал | C20: =Заявитель4!$B$33*0.95*((12+$B$32-$H20)/12)*($B$31/4) -> 0 | G20: 0 | H20: 9
A21: 3.2. | B21: 10 квартал | D21: =Заявитель4!$B$33*0.95*((12+$B$32-$H21)/12)*($B$31/4) -> 0 | G21: 0 | H21: 10
A22: 3.3. | B22: 11 квартал | E22: =Заявитель4!$B$33*0.95*((12+$B$32-$H22)/12)*($B$31/4) -> 0 | G22: 0 | H22: 11
A23: 3.4. | B23: 12 квартал | F23: =Заявитель4!$B$33*0.95*((12+$B$32-$H23)/12)*($B$31/4) -> 0 | G23: 0 | H23: 12
A24: 4 | B24: =CONCATENATE("1 год (",$B$34+3,"г.):") -> 1 год (3г.): | C24: =SUM(C25:C27) -> 0 | D24: =SUM(D25:D27) -> 0 | E24: =SUM(E25:E27) -> 0 | F24: =SUM(F25:F27) -> 0 | G24: 0
A25: 4.1. | B25: 13 квартал | C25: =Заявитель4!$B$33*0.95*((12+$B$32-$H25)/12)*($B$31/4) -> 0 | G25: 0 | H25: 13
A26: 4.2. | B26: 14 квартал | D26: =IF((Заявитель4!$B$33*0.95*((12+$B$32-$H26)/12)*($B$31/4))<0,0,Заявитель4!$B$33*0.95*((12+$B$32-$H26)/12)*($B$31/4)) -> 0 | G26: 0 | H26: 14
A27: 4.3. | B27: 15 квартал | E27: =IF((Заявитель4!$B$33*0.95*((12+$B$32-$H27)/12)*($B$31/4))<0,0,Заявитель4!$B$33*0.95*((12+$B$32-$H27)/12)*($B$31/4)) -> 0 | G27: 0 | H27: 15
A28: 5 | B28: Итого | C28: =C9+C14+C19+C24 -> 0 | D28: =D9+D14+D19+D24 -> 0 | E28: =E9+E14+E19+E24 -> 0 | F28: =F9+F14+F19+F24 -> 0 | G28: =G9+G14+G19+G24 -> 0
A32: k
A34: Год закрытия договора
A36: Размера расходов, связанных с предоставлением беспроцентной рассрочки в 2023 году | G36: =IF(B34<2019,0,IF(B34=2019,G24,IF(B34=2021,G19,IF(B34=2022,G14)))) -> 0 | H36: тыс. руб.
A38: Размер расходов, связанных с предоставлением беспроцентной рассрочки, в i-м квартале в течение трехлетнего периода предоставления беспроцентной рассрочки рассчитывается по формуле (1):
D40: , (1)
A42: где:
A43: - суммарный размер платы за технологическое присоединение, начисляемый заявителям, которым предоставляется рассрочка, в квартале k периода регулирования (тыс. руб.);
A44: k - номер квартала по порядку в периоде регулирования, в который начисляется размер платы за технологическое присоединение (равен от 1 до 4);
A45: i - номер квартала по порядку, начиная с момента начисления размера платы за технологическое присоединение с условием предоставления беспроцентной рассрочки в квартале k, с учетом квартала, в котором произведены начисления, в течение трехлетнего периода предоставления беспроцентной рассрочки (равен от k до 12 + k - 1);
A46: - ставка рефинансирования Центрального банка Российской Федерации на дату представления сетевой организацией заявки на установление размера платы за технологическое присоединение в регулирующий орган.
A47: В случае отклонения фактического значения процентной ставки по кредитам, связанным с рассрочкой по оплате технологического присоединения, от ставки рефинансирования Центрального банка Российской Федерации, при расчете фактического размера расходов, связанных с предоставлением беспроцентной рассрочки, применяется величина процентной ставки в соответствии с пунктом 87 Основ ценообразования.
A49: Примечание:
A50: 1) Периодом предоставления беспроцентной рассрочки считается 3 года.
A51: 2) Размер расходов, связанных с предоставлением беспроцентной рассрочки, в каждый квартал периода регулирования в течение трехлетнего периода предоставления беспроцентной рассрочки в отношении планируемого к получению (фактически полученного) от заявителей суммарного размера платы за технологическое присоединение, определяется в соответствии с формулой (1) Методических указаний по определению выпадающих доходов, связанных с осуществлением технологического присоединения к электрическим сетям.
A52: 3) При расчете планируемых значений показателей при заполнении таблиц 1 и 2 применяется планируемая к получению величина суммарного размера платы за технологическое присоединение, подлежащего беспроцентной рассрочке.
A53: 4) При расчете фактических значений показателей при заполнении таблиц 1 и 2 применяется суммарная плата за технологическое присоединение, начисленная с беспроцентной рассрочкой в соответствии с заключенными договорами об осуществлении технологического присоединения к электрическим сетям.

Sheet Возврат заемных средств (hidden)
A2: Расходы на возврат и обслуживание долгосрочных заемных средств, направляемых на финансирование капитальных вложений
A4: =#REF! -> 
A6: Показатели | B6: 2021 год | D6: 2022 год | F6: 2023 год | H6: 2021 год
B7: Утверждено | C7: Факт | D7: Утверждено | E7: Ожидаемые | F7: По данным организации | G7: По данным экспертов | H7: Факт по данным экспертов
A8: 1 | B8: 2 | C8: 3 | D8: 4 | E8: 5 | F8: 6 | G8: 7 | H8: 7
A9: Расходы по возврату заемных средств, направляемых на финансирование капитальных вложений
A10: Расходы на обслуживание долгосрочных заемных средств, направляемых на финансирование капитальных вложений
A11: Итого расходы на возврат и обслуживание долгосрочных заемных средств, направляемых на финансирование капитальных вложений | B11: =B10+B9 -> 0 | C11: 0 | D11: 0 | E11: 0 | F11: 0 | G11: 0 | H11: 0
A12: в т.ч. по уровням напряжения: ВН | B12: х | C12: х | E12: х
A13: СН1 | B13: х | C13: х | E13: х
A14: СН11 | B14: х | C14: х | E14: х
A15: НН | B15: х | C15: х | E15: х
A17: Руководитель организации | D17: =#REF! -> 

Sheet Форма 8.1 эксперты (hidden)
A2: Форма_8.1 - Журнал учета данных первичной информации по всем прекращениям передачи электрической энергии произошедших на объектах сетевой организации 2021 год
A3: =#REF! -> 
A4: Наименование электросетевой организации
A6: Данные о факте прекращения передачи электрической энергии | M6: Данные о масштабе прекращения передачи электрической энергии в сетевой организации | Z6: Перечень смежных сетевых организаций, затронутых прекращением передачи электрической энергии | AA6: Данные о причинах прекращения передачи электрической энергии и их расследовании | AD6: Учет в показателях надежности, в т.ч. индикативных показателях надежности (0 - нет, 1 - да) 3
A7: Номер прекращения передачи электрической энергии / Номер итоговой строки | B7: Наименование структурной единицы сетевой организации 1 | C7: Вид объекта: КЛ, ВЛ, КВЛ, ПС, ТП, РП | D7: Диспетчерское наименование объекта электросетевого хозяйства сетевой организации, в результате отключения которой произошло прекращение передачи электроэнергии потребителям услуг | E7: Высший класс напряжения отключенного оборудования сетевой организации, Кв | F7: Время и дата начала прекращения передачи электрической энергии | H7: Время и дата восстановления режима потребления электрической энергии потребителей услуг | J7: Вид прекращения передачи электроэнергии (П, А, В) 2 | L7: Продолжительность прекращения передачи электрической энергии, час. | M7: Перечень объектов электросетевого хозяйства, отключение которых привело к прекращению передачи электрической энергии потребителям услуг (ПС, ТП, РП, ВЛ, КЛ) | N7: Перечень потребителей 1-й и 2-й категорий надежности, в отношении которых произошло полное ограничение режима потребления электрической энергии | O7: Перечень потребителей 1-й и 2-й категорий надежности, в отношении которых произошло частичное ограничение режима потребления электрической энергии | P7: Количество точек поставки потребителей услуг сетевой организации, в отношении которых произошел перерыв электроснабжения, шт., в том числе: | Y7: Суммарный объем фактической нагрузки (мощности) на присоединениях потребителей услуг, по которым произошло прекращение передачи электрической энергии на момент возникновения такого события, кВт | AA7: Номер и дата акта расследования технологического нарушения, записи в оперативном журнале | AB7: Код организационной причины аварии | AC7: Код технической причины повреждения оборудования
P8: Всего | Q8: в разделении категорий надежности потребителей электрической энергии | T8: в разделении уровней напряжения ЭПУ потребителя электрической энергии | X8: Смежные сетевые организации и производители электрической энергии
F9: ДД.ММ.ГГГГ (00:00:00) | G9: часы, минуты (00:00) | H9: ДД.ММ.ГГГГ (00:00:00) | I9: часы, минуты (00:00) | Q9: 1-я категория надежности | R9: 2-я категория надежности | S9: 3-я категория надежности | T9: BH (110 кВ и выше) | U9: CH1 (35 кВ) | V9: CH2 (6-20 кВ) | W9: HH (0,22-1 кВ)
A10: 1 | B10: 2 | C10: 3 | D10: 4 | E10: 5 | F10: 6 | H10: 7 | J10: 8 | L10: 9 | M10: 10 | N10: 11 | O10: 12 | P10: 13 | Q10: 14 | R10: 15 | S10: 16 | T10: 17 | U10: 18 | V10: 19 | W10: 20 | X10: 21 | Y10: 22 | Z10: 23 | AA10: 24 | AB10: 25 | AC10: 26 | AD10: 27
K11: =IF((H11=""),0,H11-F11) -> 0 | L11: =(IF((I11=""),0,IF((I11>0),K11-G11+I11,I11-G11)))*24 -> 0 | P11: =Q11+R11+S11+X11 -> 0 | AE11: =(IF(AND(J11=$J$21,AD11=1),P11*L11,0)) -> 0 | AF11: =IF(J11=$J$19,P11*L11,0) -> 0
K12: 0 | L12: 0 | P12: 0 | AE12: 0 | AF12: 0
K13: 0 | L13: 0 | P13: 0 | AE13: 0 | AF13: 0
K14: 0 | L14: 0 | P14: 0 | AE14: 0 | AF14: 0
K15: 0 | L15: 0 | P15: 0 | AE15: 0 | AF15: 0
K16: 0 | L16: 0 | P16: 0 | AE16: 0 | AF16: 0
A17: Добавить
A18: Итого по всем прекращениям передачи электрической энергии за отчетный период: | C18: х | D18: х | E18: х | F18: х | H18: х | J18: И | L18: =SUBTOTAL(9,L11:L16) -> 0 | M18: х | N18: х | O18: х | P18: =SUBTOTAL(9,P11:P16) -> 0 | Q18: 0 | R18: 0 | S18: 0 | T18: 0 | U18: 0 | V18: 0 | W18: 0 | X18: 0 | Y18: 0 | Z18: 0 | AA18: х | AB18: х | AC18: х | AD18: 0;1 | AE18: =SUM(AE11:AE17) -> 0 | AF18: =SUM(AF11:AF17) -> 0
A19: - по ограничениям, связанным с проведением ремонтных работ | C19: х | D19: х | E19: х | F19: х | H19: х | J19: П | L19: =SUMIF(J$11:J$16,J19,L$11:L$16) -> 0 | M19: х | N19: х | O19: х | P19: =SUMIF(J$11:J$16,J19,P$11:P$16) -> 0 | Q19: =SUMIF(J$11:J$16,J19,Q$11:Q$16) -> 0 | R19: =SUMIF(J$11:J$16,J19,R$11:R$16) -> 0 | S19: =SUMIF(J$11:J$16,J19,S$11:S$16) -> 0 | T19: =SUMIF(J$11:J$16,J19,T$11:T$16) -> 0 | U19: =SUMIF(J$11:J$16,J19,U$11:U$16) -> 0 | V19: =SUMIF(J$11:J$16,J19,V$11:V$16) -> 0 | W19: =SUMIF(J$11:J$16,J19,W$11:W$16) -> 0 | X19: =SUMIF(J$11:J$16,J19,X$11:X$16) -> 0 | Y19: =SUMIF(J$11:J$16,J19,Y$11:Y$16) -> 0 | Z19: =SUMIF(J$11:J$16,J19,Z$11:Z$16) -> 0 | AA19: х | AB19: х | AC19: х | AD19: 0 | AE19: х | AF19: х
A20: - по аварийным ограничениям | C20: х | D20: х | E20: х | F20: х | H20: х | J20: А | L20: =SUMIF(J$11:J$16,J20,L$11:L$16) -> 0 | M20: х | N20: х | O20: х | P20: =SUMIF(J$11:J$16,J20,P$11:P$16) -> 0 | Q20: =SUMIF(J$11:J$16,J20,Q$11:Q$16) -> 0 | R20: =SUMIF(J$11:J$16,J20,R$11:R$16) -> 0 | S20: =SUMIF(J$11:J$16,J20,S$11:S$16) -> 0 | T20: =SUMIF(J$11:J$16,J20,T$11:T$16) -> 0 | U20: =SUMIF(J$11:J$16,J20,U$11:U$16) -> 0 | V20: =SUMIF(J$11:J$16,J20,V$11:V$16) -> 0 | W20: =SUMIF(J$11:J$16,J20,W$11:W$16) -> 0 | X20: =SUMIF(J$11:J$16,J20,X$11:X$16) -> 0 | Y20: =SUMIF(J$11:J$16,J20,Y$11:Y$16) -> 0 | Z20: =SUMIF(J$11:J$16,J20,Z$11:Z$16) -> 0 | AA20: х | AB20: х | AC20: х | AD20: 1 | AE20: х | AF20: х
A21: - по внерегламентным отключениям | C21: х | D21: х | E21: х | F21: х | H21: х | J21: В | L21: =SUMIF(J$11:J$16,J21,L$11:L$16) -> 0 | M21: х | N21: х | O21: х | P21: =SUMIF(J$11:J$16,J21,P$11:P$16) -> 0 | Q21: =SUMIF(J$11:J$16,J21,Q$11:Q$16) -> 0 | R21: =SUMIF(J$11:J$16,J21,R$11:R$16) -> 0 | S21: =SUMIF(J$11:J$16,J21,S$11:S$16) -> 0 | T21: =SUMIF(J$11:J$16,J21,T$11:T$16) -> 0 | U21: =SUMIF(J$11:J$16,J21,U$11:U$16) -> 0 | V21: =SUMIF(J$11:J$16,J21,V$11:V$16) -> 0 | W21: =SUMIF(J$11:J$16,J21,W$11:W$16) -> 0 | X21: =SUMIF(J$11:J$16,J21,X$11:X$16) -> 0 | Y21: =SUMIF(J$11:J$16,J21,Y$11:Y$16) -> 0 | Z21: =SUMIF(J$11:J$16,J21,Z$11:Z$16) -> 0 | AA21: х | AB21: х | AC21: х | AD21: 0;1 | AE21: х | AF21: х
A22: - по внерегламентным отключениям,учитываемым при расчете показателей надежности, в том числе индикативных показателей надежности | C22: х | D22: х | E22: х | F22: х | H22: х | J22: В1 | L22: =SUM((AD11:AD16=1)*(J11:K16=$J$21)*L11:L16) -> 0 | M22: х | N22: х | O22: х | P22: =SUM((AD11:AD16=1)*(J11:J16=$J$21)*P11:P16) -> 0 | Q22: =SUM((AD11:AD16=1)*(J11:J16=$J$21)*Q11:Q16) -> 0 | R22: =SUM((AD11:AD16=1)*(J11:J16=$J$21)*R11:R16) -> 0 | S22: =SUM((AD11:AD16=1)*(J11:J16=$J$21)*S11:S16) -> 0 | T22: =SUM((AD11:AD16=1)*(J11:J16=$J$21)*T11:T16) -> 0 | U22: =SUM((AD11:AD16=1)*(J11:J16=$J$21)*U11:U16) -> 0 | V22: =SUM((AD11:AD16=1)*(J11:J16=$J$21)*V11:V16) -> 0 | W22: =SUM((AD11:AD16=1)*(J11:J16=$J$21)*W11:W16) -> 0 | X22: =SUM((AD11:AD16=1)*(J11:J16=$J$21)*X11:X16) -> 0 | Y22: =SUM((AD11:AD16=1)*(J11:J16=$J$21)*Y11:Y16) -> 0 | Z22: =SUM((AD11:AD16=1)*(J11:J16=$J$21)*Z11:Z16) -> 0 | AA22: х | AB22: х | AC22: х | AD22: 1 | AE22: х | AF22: х
A26: Должность | R26: Ф. И. О.
A28: Примечание
A29: 1 Указываются наименования производственных отделений или предприятий электрических сетей.
A30: 2 "П" - плановое отключение, связанное с необходимостью проведения ремонтно-восстановительных работ в соответствии с разделом III Правил полного и (или) частичного ограничения режима потребления электрической энергии; "А" - аварийное ограничение, связанное с введением в действие графиков аварийного ограничения режима потребления в соответствии с пунктами 40-46 Правил полного и(или) частичного ограничения режима потребления электрической энергии; "В" - внерегламентное отключение в соответствии с пунктом 47 Правил полного и (или) частичного ограничения режима потребления электрической энергии
A31: 3 указывается 0 (ноль), если прекращение передачи электрической энергии не включается в расчет показателей надежности, что соответствует кодам организационных причин аварии в соответствии с приложением N 2 приказа Минэнерго России N 90 и в соответствии с положениями Методических указаний утв. приказом МИНЭНЕРГО № 1256 ; указывается 1 (один), если прекращение передачи электрической энергии включается в расчет показателей надежности, что соответствует кодам организационных причин аварии в соответствии с приложением N 2 приказа Минэнерго России N 90 и в соответствии с положениями Методических указаний утв. приказом МИНЭНЕРГО № 1256 ;.

Sheet TEHSHEET (hidden)
E7: Январь
E8: Февраль
E9: Март
E10: Апрель
E11: Май
E12: Июнь
E13: Июль
E14: Август
E15: Сентябрь
E16: Октябрь
E17: Ноябрь
E18: Декабрь

Sheet НВВ для шаблона ЕИАС отчет (hidden)
A2: Наименование организации | B2: Период | C2: Расчет коэффициента индексации | M2: Расчет подконтрольных расходов | AH2: Расчет неподконтрольных расходов | BB2: Расходы, связанные с компенсацией незапланированных расходов или полученного избытка | BC2: Итого НВВ на содержание сетей | BD2: в том числе | BF2: Доля стороннего отпуска в сеть от организаций, занимающихся несколькими видами деятельности (без собственных нужд) | BG2: Отношение НВВ на содержание сетей текущего года к предыдущему года | BH2: Поступление в сеть электроэнергии | BI2: Объем технологического расхода (потерь) | BJ2: Тариф на покупку потерь | BK2: Норматив техноло-гического расхода (потерь) электро-энергии | BL2: Итого расходов на оплату потерь | BM2: в том числе | BO2: Прирост расходов на оплату потерь текущего года к предыдущему году | BP2: Поступление в сеть мощности | BQ2: Уровень надежности реализуемых товаров (услуг) (П п) | BR2: Уровень качества реализуемых товаров (услуг) (П тсо) | BS2: Уровень качества реализуемых товаров (услуг) (П тпр)
C3: Инфляция | D3: Индекс эффективности операционных расходов | E3: Количество активов, всего | F3: ВН | G3: СН1 | H3: СН2 | I3: НН | J3: Индекс изменения количества активов | K3: Коэффициент эластичности затрат по росту активов | L3: Итого коэффициент индексации | M3: Материальные затраты | N3: Сырье, материалы, запасные части, инструмент, топливо | O3: Работы и услуги производственного характера (в т.ч. услуги сторонних организаций по содержанию сетей и распределительных устройств) | P3: Расходы на оплату труда | Q3: Прочие расходы, всего, в том числе: | R3: Ремонт основных фондов | S3: Оплата работ и услуг сторонних организаций | T3: услуги связи | U3: Расходы на услуги вневедомственной охраны и коммунального хозяйства | V3: Расходы на юридические и информационные услуги | W3: Расходы на аудиторские и консультационные услуги | X3: Транспортные услуги | Y3: Прочие услуги сторонних организаций | Z3: Расходы на командировки и представительские | AA3: Расходы на подготовку кадров | AB3: Расходы на обеспечение нормальных условий труда и мер по технике безопасности | AC3: Расходы на страхование | AD3: Другие прочие расходы | AE3: Электроэнергия на хоз. нужды | AF3: Подконтрольные расходы из прибыли | AG3: ИТОГО подконтрольные расходы | AH3: Оплата услуг ОАО "ФСК ЕЭС" | AI3: в том числе | AK3: Теплоэнергия | AL3: Аренда, всего | AM3: в том числе аренда объектов электро- сетевого комплекса | AN3: Налоги (без учета налога на прибыль), всего, в том числе: | AO3: плата за землю | AP3: Налог на имущество | AQ3: Прочие налоги и сборы | AR3: Отчисления на социальные нужды (ЕСН) | AS3: Прочие неподконтрольные расходы | AT3: Налог на прибыль, в том числе: | AU3: налог на прибыль на капитальные вложения | AV3: Выпадающие доходы по п.87 Основ ценообразования | AW3: Амортизация ОС | AX3: Прибыль на капитальные вложения | AY3: Возврат заемных средств, направляемый на финансирование капитальных вложений | AZ3: Проверка прибыли на капитальные вложения (не более 12% от НВВ на содержание сетей) | BA3: ИТОГО неподконтрольных расходов
AI4: Оплата услуг ОАО "ФСК ЕЭС" 1 полугодие | AJ4: Оплата услуг ОАО "ФСК ЕЭС" 2 полугодие | BD4: НВВ на 1 полугодие | BE4: НВВ на 2 полугодие | BM4: расходы на 1 полугодие | BN4: расходы на 2 полугодие
C5: % | D5: % | E5: у.е. | F5: у.е. | G5: у.е. | H5: у.е. | I5: у.е. | J5: % | M5: тыс.руб | N5: тыс.руб | O5: тыс.руб | P5: тыс.руб | Q5: тыс.руб | R5: тыс.руб | S5: тыс.руб | T5: тыс.руб | U5: тыс.руб | V5: тыс.руб | W5: тыс.руб | X5: тыс.руб | Y5: тыс.руб | Z5: тыс.руб | AA5: тыс.руб | AB5: тыс.руб | AC5: тыс.руб | AD5: тыс.руб | AE5: тыс.руб | AF5: тыс.руб | AG5: тыс.руб | AH5: тыс.руб | AI5: тыс.руб | AJ5: тыс.руб | AK5: тыс.руб | AL5: тыс.руб | AM5: тыс.руб | AN5: тыс.руб | AO5: тыс.руб | AP5: тыс.руб | AQ5: тыс.руб | AR5: тыс.руб | AS5: тыс.руб | AT5: тыс.руб | AU5: тыс.руб | AV5: тыс.руб | AW5: тыс.руб | AX5: тыс.руб | AY5: тыс.руб | AZ5: % | BA5: тыс.руб | BB5: тыс.руб | BC5: тыс.руб | BD5: тыс.руб | BE5: тыс.руб | BF5: % | BG5: % | BH5: млн.кВтч | BI5: млн.кВтч | BJ5: руб./МВтч | BK5: % | BL5: тыс.руб | BM5: тыс.руб | BN5: тыс.руб | BO5: % | BP5: МВт
A6: А | B6: Б | C6: 0.1 | D6: 0.2 | E6: 0.3 | F6: 0.3.1 | G6: 0.3.2 | H6: 0.3.3 | I6: 0.3.4 | J6: 0.4 | K6: 0.5 | L6: 0.6 | M6: 1.1 | N6: 1.1.1 | O6: 1.1.2 | P6: 1.2 | Q6: 1.3 | R6: 1.3.1 | S6: 1.3.2 | T6: 1.3.2.1 | U6: 1.3.2.2 | V6: 1.3.2.3 | W6: 1.3.2.4 | X6: 1.3.2.5 | Y6: 1.3.2.6 | Z6: 1.3.3 | AA6: 1.3.4 | AB6: 1.3.5 | AC6: 1.3.6 | AD6: 1.3.7 | AE6: 1.4 | AF6: 1.5 | AG6: 1.6 | AH6: 2.1 | AI6: 2.1.1 | AJ6: 2.1.2 | AK6: 2.2 | AL6: 2.3 | AM6: 2.3.1 | AN6: 2.4 | AO6: 2.4.1 | AP6: 2.4.2 | AQ6: 2.4.3 | AR6: 2.5 | AS6: 2.6 | AT6: 2.7 | AU6: 2.7.1 | AV6: 2.8 | AW6: 2.9 | AX6: 2.10 | AY6: 2.11 | AZ6: 2.12 | BA6: 2.13 | BB6: 3 | BC6: 4 | BD6: 4.1 | BE6: 4.2 | BF6: 5 | BG6: 6 | BH6: 7 | BI6: 8 | BJ6: 9 | BK6: 10 | BL6: 11 | BM6: 11.1 | BN6: 11.2 | BO6: 12 | BP6: 13 | BQ6: 14 | BR6: 15.1 | BS6: 15.2
A7: =#REF! ->  | B7: 2022 | D7: =#REF! ->  | E7: =SUM(F7:I7) ->  | F7: =#REF! ->  | G7: =#REF! ->  | H7: =#REF! ->  | I7: =#REF! ->  | K7: 0.75 | M7: =SUM(N7:O7) ->  | N7: =#REF! ->  | O7: =#REF! ->  | P7: =#REF! ->  | Q7: =R7+S7+Z7+AA7+AB7+AC7+AD7+AF7 ->  | R7: =#REF! ->  | S7: =SUM(T7:Y7) ->  | T7: =#REF! ->  | Z7: =#REF! ->  | AA7: =#REF! ->  | AB7: =#REF! ->  | AC7: =#REF! ->  | AD7: =#REF! ->  | AF7: =#REF! ->  | AG7: =M7+P7+Q7 ->  | AH7: ='Услуги ФСК'!B33 -> 0 | AI7: =AH7/2 -> 0 | AJ7: =AI7 -> 0 | AK7: =#REF! ->  | AL7: =#REF! ->  | AM7: ='Аренда имущества'!D39 -> 0 | AN7: =SUM(AO7:AQ7) ->  | AO7: =#REF! ->  | AP7: =#REF! ->  | AQ7: =#REF!+#REF! ->  | AR7: =#REF! ->  | AS7: =#REF! ->  | AT7: =#REF! ->  | AU7: =AX7/0.8*0.2 ->  | AV7: =#REF! ->  | AW7: =#REF! ->  | AX7: =#REF! ->  | AY7: =#REF! ->  | AZ7: =AX7/0.8*0.2 ->  | BA7: =AH7+AK7+AL7+AN7+AS7+AT7+AV7+AR7+AW7+AX7+AY7 ->  | BB7: =#REF!+#REF!+#REF! ->  | BC7: =SUM(BA7,BB7,AG7) ->  | BH7: ='НВВ для шаблона ЕИАС предел'!BH7 -> 177.0852 | BI7: ='Баланс энергии'!M18/1000 -> 12.9803 | BJ7: =#REF! ->  | BK7: =IF(BH7=0,0,BI7/BH7) -> 0.07329974498 | BL7: =BI7*BJ7 ->  | BM7: =#REF! ->  | BN7: =BL7-BM7 ->  | BQ7: =#REF! ->  | BR7: =#REF! ->  | BS7: =#REF! -> 
B8: 2023 | C8: =#REF! ->  | D8: =D7 ->  | E8: =SUM(F8:I8) ->  | F8: =#REF! ->  | G8: =#REF! ->  | H8: =#REF! ->  | I8: =#REF! ->  | J8: =IF(E7=0,0,(E8-E7)/E7*K8) ->  | K8: 0.75 | L8: =(1+C8)*(1-D8)*(1+J8) ->  | M8: =SUM(N8:O8) ->  | N8: =N7*$L8 ->  | O8: =O7*L8 ->  | P8: =P7*$L8 ->  | Q8: =R8+S8+Z8+AA8+AB8+AC8+AD8+AE8+AF8 ->  | R8: =R7*$L8 ->  | S8: =SUM(T8:Y8) ->  | T8: =T7*$L8 ->  | U8: =U7*L8 ->  | V8: =V7*L8 ->  | W8: =W7*$L8 ->  | X8: =X7*$L8 ->  | AG8: =M8+P8+Q8 ->  | AH8: ='Услуги ФСК'!F33 -> 0 | AI8: =AH8/2 -> 0 | AJ8: =AI8 -> 0 | AK8: =#REF! ->  | AL8: =#REF! ->  | AN8: =SUM(AO8:AQ8) ->  | AO8: =#REF! ->  | AP8: =#REF! ->  | AQ8: =#REF!+#REF! ->  | AR8: =#REF! ->  | AS8: =#REF! ->  | AT8: =#REF! ->  | AU8: =AX7/0.8*0.2 ->  | AV8: =#REF! ->  | AW8: =#REF! ->  | AX8: =#REF! ->  | AY8: =#REF! ->  | AZ8: =nerr((AX8+AY8)/(BC8-AH8-AU8-AX8-AY8-AM8)) ->  | BA8: =AH8+AK8+AL8+AN8+AS8+AT8+AV8+AR8+AW8+AX8+AY8 ->  | BB8: =#REF!+#REF!+#REF!+#REF!+#REF! ->  | BC8: =SUM(BA8,BB8,AG8) ->  | BF8: =nerr((BD8+BE8)/BC8) ->  | BG8: =nerr((BC8-BC7)/BC7) ->  | BH8: ='Баланс энергии'!AG8 -> 182430.5558 | BI8: =#REF! ->  | BJ8: =#REF! ->  | BK8: =IF(BH8=0,0,BI8/BH8) ->  | BL8: =BI8*BJ8 ->  | BM8: =#REF! ->  | BN8: =BL8-BM8 ->  | BO8: =nerr((BL8-BL7)/BL7) ->  | BQ8: =#REF! ->  | BR8: =#REF! ->  | BS8: =#REF! -> 
D9: =D8 ->  | E9: =SUM(F9:I9) -> 0 | J9: =IF(E7=0,0,(E8-E7)/E7*K9) ->  | K9: 0.75 | L9: =(1+C9)*(1-D9)*(1+J9) ->  | M9: =SUM(N9:O9) ->  | N9: =N8*$L9 ->  | O9: =O8*L9 ->  | P9: =P8*$L9 ->  | Q9: =R9+S9+Z9+AA9+AB9+AC9+AD9+AE9+AF9 ->  | R9: =R8*$L9 ->  | S9: =SUM(T9:Y9) ->  | T9: =T8*$L9 ->  | U9: =U8*L9 ->  | V9: =V8*L9 ->  | W9: =W8*$L9 ->  | AG9: =M9+P9+Q9 ->  | AH9: =AI9+AJ9 -> 0 | AI9: ='Услуги ФСК'!J33 -> 0 | AJ9: ='Услуги ФСК'!K33 -> 0 | AN9: =SUM(AO9:AQ9) -> 0 | AZ9: =nerr((AX9+AY9)/(BC9-AH9-AU9-AX9-AY9-AM9)) ->  | BA9: =AH9+AK9+AL9+AN9+AS9+AT9+AV9+AR9+AW9+AX9+AY9 -> 0 | BC9: =SUM(BA9,BB9,AG9) ->  | BF9: =nerr((BD9+BE9)/BC9) ->  | BG9: =nerr((BC9-BC8)/BC8) ->  | BI9: =BI8 ->  | BK9: =IF(BH9=0,0,BI9/BH9) -> 0 | BL9: =BI9*BJ9 ->  | BM9: =#REF!/2 ->  | BN9: =BL9-BM9 ->  | BO9: =nerr((BL9-BL8)/BL8) -> 
D10: =D9 ->  | E10: =SUM(F10:I10) -> 0 | J10: =IF(E8=0,0,(E10-E8)/E8*K10) ->  | K10: 0.75 | L10: =(1+C10)*(1-D10)*(1+J10) ->  | M10: =SUM(N10:O10) ->  | N10: =N9*$L10 ->  | O10: =O9*L10 ->  | P10: =P9*$L10 ->  | Q10: =R10+S10+Z10+AA10+AB10+AC10+AD10+AE10+AF10 ->  | R10: =R9*$L10 ->  | S10: =SUM(T10:Y10) ->  | T10: =T9*$L10 ->  | U10: =U9*L10 ->  | V10: =V9*L10 ->  | W10: =W9*$L10 ->  | AG10: =M10+P10+Q10 ->  | AH10: =AI10+AJ10 -> 0 | AN10: =SUM(AO10:AQ10) -> 0 | AZ10: =nerr((AX10+AY10)/(BC10-AH10-AU10-AX10-AY10-AM10)) ->  | BA10: =AH10+AK10+AL10+AN10+AS10+AT10+AV10+AR10+AW10+AX10+AY10 -> 0 | BC10: =SUM(BA10,BB10,AG10) ->  | BF10: =nerr((BD10+BE10)/BC10) ->  | BG10: =nerr((BC10-BC9)/BC9) ->  | BI10: =BI9 ->  | BK10: =IF(BH10=0,0,BI10/BH10) -> 0 | BL10: =BI10*BJ10 ->  | BM10: =#REF!/2 ->  | BN10: =BL10-BM10 ->  | BO10: =nerr((BL10-BL9)/BL9) -> 
D11: =D10 ->  | E11: =SUM(F11:I11) -> 0 | J11: =IF(E10=0,0,(E11-E10)/E10*K11) -> 0 | K11: 0.75 | L11: =(1+C11)*(1-D11)*(1+J11) ->  | M11: =SUM(N11:O11) ->  | N11: =N10*$L11 ->  | O11: =O10*L11 ->  | P11: =P10*$L11 ->  | Q11: =R11+S11+Z11+AA11+AB11+AC11+AD11+AE11+AF11 ->  | R11: =R10*$L11 ->  | S11: =SUM(T11:Y11) ->  | T11: =T10*$L11 ->  | U11: =U10*L11 ->  | V11: =V10*L11 ->  | W11: =W10*$L11 ->  | AG11: =M11+P11+Q11 ->  | AH11: =AI11+AJ11 -> 0 | AN11: =SUM(AO11:AQ11) -> 0 | AZ11: =((AX11+AY11)/(BC11-AH11-AU11-AX11-AY11-AM11)) ->  | BA11: =AH11+AK11+AL11+AN11+AS11+AT11+AV11+AR11+AW11+AX11+AY11 -> 0 | BC11: =SUM(BA11,BB11,AG11) ->  | BF11: =((BD11+BE11)/BC11) ->  | BG11: =nerr((BC11-BC10)/BC10) ->  | BI11: =BI10 ->  | BK11: =IF(BH11=0,0,BI11/BH11) -> 0 | BL11: =BI11*BJ11 ->  | BM11: =#REF!/2 ->  | BN11: =BL11-BM11 ->  | BO11: =nerr((BL11-BL10)/BL10) -> 
AG14: 97048.90261 | BA14: 79085.3609 | BC14: 181736.2821

Sheet НВВ для шаблона ЕИАС предел (hidden)
A2: Наименование организации | B2: Период | C2: Расчет коэффициента индексации | M2: Расчет подконтрольных расходов | AH2: Расчет неподконтрольных расходов | BB2: Расходы, связанные с компенсацией незапланированных расходов или полученного избытка | BC2: Итого НВВ на содержание сетей | BD2: в том числе | BF2: Доля стороннего отпуска в сеть от организаций, занимающихся несколькими видами деятельности (без собственных нужд) | BG2: Отношение НВВ на содержание сетей текущего года к предыдущему года | BH2: Поступление в сеть электроэнергии | BI2: Объем технологического расхода (потерь) | BJ2: Тариф на покупку потерь | BK2: Норматив техноло-гического расхода (потерь) электро-энергии | BL2: Итого расходов на оплату потерь | BM2: в том числе | BO2: Прирост расходов на оплату потерь текущего года к предыдущему году | BP2: Поступление в сеть мощности | BQ2: Уровень надежности реализуемых товаров (услуг) (П п) | BR2: Уровень качества реализуемых товаров (услуг) (П тсо) | BS2: Уровень качества реализуемых товаров (услуг) (П тпр)
C3: Инфляция | D3: Индекс эффективности операционных расходов | E3: Количество активов, всего | F3: ВН | G3: СН1 | H3: СН2 | I3: НН | J3: Индекс изменения количества активов | K3: Коэффициент эластичности затрат по росту активов | L3: Итого коэффициент индексации | M3: Материальные затраты | N3: Сырье, материалы, запасные части, инструмент, топливо | O3: Работы и услуги производственного характера (в т.ч. услуги сторонних организаций по содержанию сетей и распределительных устройств) | P3: Расходы на оплату труда | Q3: Прочие расходы, всего, в том числе: | R3: Ремонт основных фондов | S3: Оплата работ и услуг сторонних организаций | T3: услуги связи | U3: Расходы на услуги вневедомственной охраны и коммунального хозяйства | V3: Расходы на юридические и информационные услуги | W3: Расходы на аудиторские и консультационные услуги | X3: Транспортные услуги | Y3: Прочие услуги сторонних организаций | Z3: Расходы на командировки и представительские | AA3: Расходы на подготовку кадров | AB3: Расходы на обеспечение нормальных условий труда и мер по технике безопасности | AC3: Расходы на страхование | AD3: Другие прочие расходы | AE3: Электроэнергия на хоз. нужды | AF3: Подконтрольные расходы из прибыли | AG3: ИТОГО подконтрольные расходы | AH3: Оплата услуг ОАО "ФСК ЕЭС" | AI3: в том числе | AK3: Теплоэнергия | AL3: Аренда, всего | AM3: в том числе аренда объектов электро- сетевого комплекса | AN3: Налоги (без учета налога на прибыль), всего, в том числе: | AO3: плата за землю | AP3: Налог на имущество | AQ3: Прочие налоги и сборы | AR3: Отчисления на социальные нужды (ЕСН) | AS3: Прочие неподконтрольные расходы | AT3: Налог на прибыль, в том числе: | AU3: налог на прибыль на капитальные вложения | AV3: Выпадающие доходы по п.87 Основ ценообразования | AW3: Амортизация ОС | AX3: Прибыль на капитальные вложения | AY3: Возврат заемных средств, направляемый на финансирование капитальных вложений | AZ3: Проверка прибыли на капитальные вложения (не более 12% от НВВ на содержание сетей) | BA3: ИТОГО неподконтрольных расходов
AI4: Оплата услуг ОАО "ФСК ЕЭС" 1 полугодие | AJ4: Оплата услуг ОАО "ФСК ЕЭС" 2 полугодие | BD4: НВВ на 1 полугодие | BE4: НВВ на 2 полугодие | BM4: расходы на 1 полугодие | BN4: расходы на 2 полугодие
C5: % | D5: % | E5: у.е. | F5: у.е. | G5: у.е. | H5: у.е. | I5: у.е. | J5: % | M5: тыс.руб | N5: тыс.руб | O5: тыс.руб | P5: тыс.руб | Q5: тыс.руб | R5: тыс.руб | S5: тыс.руб | T5: тыс.руб | U5: тыс.руб | V5: тыс.руб | W5: тыс.руб | X5: тыс.руб | Y5: тыс.руб | Z5: тыс.руб | AA5: тыс.руб | AB5: тыс.руб | AC5: тыс.руб | AD5: тыс.руб | AE5: тыс.руб | AF5: тыс.руб | AG5: тыс.руб | AH5: тыс.руб | AI5: тыс.руб | AJ5: тыс.руб | AK5: тыс.руб | AL5: тыс.руб | AM5: тыс.руб | AN5: тыс.руб | AO5: тыс.руб | AP5: тыс.руб | AQ5: тыс.руб | AR5: тыс.руб | AS5: тыс.руб | AT5: тыс.руб | AU5: тыс.руб | AV5: тыс.руб | AW5: тыс.руб | AX5: тыс.руб | AY5: тыс.руб | AZ5: % | BA5: тыс.руб | BB5: тыс.руб | BC5: тыс.руб | BD5: тыс.руб | BE5: тыс.руб | BF5: % | BG5: % | BH5: млн.кВтч | BI5: млн.кВтч | BJ5: руб./МВтч | BK5: % | BL5: тыс.руб | BM5: тыс.руб | BN5: тыс.руб | BO5: % | BP5: МВт
A6: А | B6: Б | C6: 0.1 | D6: 0.2 | E6: 0.3 | F6: 0.3.1 | G6: 0.3.2 | H6: 0.3.3 | I6: 0.3.4 | J6: 0.4 | K6: 0.5 | L6: 0.6 | M6: 1.1 | N6: 1.1.1 | O6: 1.1.2 | P6: 1.2 | Q6: 1.3 | R6: 1.3.1 | S6: 1.3.2 | T6: 1.3.2.1 | U6: 1.3.2.2 | V6: 1.3.2.3 | W6: 1.3.2.4 | X6: 1.3.2.5 | Y6: 1.3.2.6 | Z6: 1.3.3 | AA6: 1.3.4 | AB6: 1.3.5 | AC6: 1.3.6 | AD6: 1.3.7 | AE6: 1.4 | AF6: 1.5 | AG6: 1.6 | AH6: 2.1 | AI6: 2.1.1 | AJ6: 2.1.2 | AK6: 2.2 | AL6: 2.3 | AM6: 2.3.1 | AN6: 2.4 | AO6: 2.4.1 | AP6: 2.4.2 | AQ6: 2.4.3 | AR6: 2.5 | AS6: 2.6 | AT6: 2.7 | AU6: 2.7.1 | AV6: 2.8 | AW6: 2.9 | AX6: 2.10 | AY6: 2.11 | AZ6: 2.12 | BA6: 2.13 | BB6: 3 | BC6: 4 | BD6: 4.1 | BE6: 4.2 | BF6: 5 | BG6: 6 | BH6: 7 | BI6: 8 | BJ6: 9 | BK6: 10 | BL6: 11 | BM6: 11.1 | BN6: 11.2 | BO6: 12 | BP6: 13 | BQ6: 14 | BR6: 15.1 | BS6: 15.2
B7: 2022 | D7: =#REF! ->  | E7: =SUM(F7:I7) ->  | F7: =#REF! ->  | G7: =#REF! ->  | H7: =#REF! ->  | I7: =#REF! ->  | M7: =SUM(N7:O7) ->  | N7: =#REF! ->  | O7: =#REF! ->  | P7: =#REF! ->  | Q7: =R7+S7+Z7+AA7+AB7+AC7+AD7+AE7+AF7 ->  | R7: =#REF! ->  | S7: =SUM(T7:Y7) ->  | T7: =#REF! ->  | Z7: =#REF! ->  | AA7: =#REF! ->  | AB7: =#REF! ->  | AC7: =#REF! ->  | AD7: =#REF! ->  | AF7: =#REF! ->  | AG7: =M7+P7+Q7 ->  | AH7: ='Услуги ФСК'!F17 -> 0 | AI7: =AH7/2 -> 0 | AJ7: =AI7 -> 0 | AK7: =#REF! ->  | AL7: =#REF! ->  | AM7: ='Аренда имущества'!D39 -> 0 | AN7: =SUM(AO7:AQ7) ->  | AO7: =#REF! ->  | AP7: =#REF! ->  | AQ7: =#REF!+#REF! ->  | AR7: =#REF! ->  | AS7: =#REF! ->  | AT7: =#REF! ->  | AU7: =AX7/0.8*0.2 ->  | AV7: =#REF! ->  | AW7: =#REF! ->  | AX7: =#REF! ->  | AY7: =#REF! ->  | BA7: =AH7+AK7+AL7+AN7+AS7+AT7+AV7+AR7+AW7+AX7+AY7 ->  | BB7: =#REF!+#REF!+#REF! ->  | BC7: =SUM(BA7,BB7,AG7) ->  | BG7: =BC7 ->  | BH7: ='Баланс энергии'!M8/1000 -> 177.0852 | BI7: ='Баланс энергии'!M18/1000 -> 12.9803 | BJ7: =#REF! ->  | BK7: =IF(BH7=0,0,BI7/BH7) -> 0.07329974498 | BL7: =BI7*BJ7 ->  | BM7: =#REF! ->  | BN7: =BL7-BM7 ->  | BP7: ='Баланс мощности'!H10 -> 0 | BQ7: =#REF! ->  | BR7: =#REF! ->  | BS7: =#REF! -> 
B8: 2023 | C8: =#REF! ->  | D8: =D7 ->  | E8: =SUM(F8:I8) ->  | F8: =#REF! ->  | G8: =#REF! ->  | H8: =#REF! ->  | I8: =#REF! ->  | J8: =IF(E7=0,0,(E8-E7)/E7*K8) ->  | K8: 0.75 | L8: =(1+C8)*(1-D8)*(1+J8) ->  | M8: =SUM(N8:O8) ->  | N8: =N7*$L8 ->  | O8: =O7*L8 ->  | P8: =P7*$L8 ->  | Q8: =R8+S8+Z8+AA8+AB8+AC8+AD8+AE8+AF8 ->  | R8: =R7*$L8 ->  | S8: =SUM(T8:Y8) ->  | T8: =T7*$L8 ->  | U8: =U7*L8 ->  | V8: =V7*L8 ->  | W8: =W7*$L8 ->  | X8: =X7*$L8 ->  | AG8: =M8+P8+Q8 ->  | AH8: =AI8+AJ8 -> 0 | AI8: ='Услуги ФСК'!J17 -> 0 | AJ8: ='Услуги ФСК'!K17 -> 0 | AK8: =#REF! ->  | AL8: =#REF! ->  | AM8: ='Аренда имущества'!F39 -> 0 | AN8: =SUM(AO8:AQ8) ->  | AO8: =#REF! ->  | AP8: =#REF! ->  | AQ8: =#REF!+#REF! ->  | AR8: =#REF! ->  | AS8: =#REF! ->  | AT8: =#REF! ->  | AU8: =AX7/0.8*0.2 ->  | AV8: =#REF! ->  | AW8: =#REF! ->  | AX8: =#REF! ->  | AY8: =#REF! ->  | AZ8: =nerr((AX8+AY8)/(BC8-AH8-AU8-AX8-AY8-AM8)) ->  | BA8: =AH8+AK8+AL8+AN8+AS8+AT8+AV8+AR8+AW8+AX8+AY8 ->  | BB8: =#REF!+#REF!+#REF!+#REF! ->  | BC8: =SUM(BA8,BB8,AG8) ->  | BF8: =nerr((BD8+BE8)/BC8) ->  | BG8: =nerr((BC8-BC7)/BC7) ->  | BH8: ='Баланс энергии'!R8/1000 -> 177.0845839 | BI8: ='Баланс энергии'!R18/1000 -> 12.9803 | BK8: =IF(BH8=0,0,BI8/BH8) -> 0.0733 | BL8: =BI8*BJ8 -> 0 | BN8: =BL8-BM8 -> 0 | BO8: =nerr((BL8-BL7)/BL7) ->  | BP8: ='Баланс мощности'!H10 -> 0 | BQ8: =#REF! ->  | BR8: =#REF! ->  | BS8: =#REF! -> 
D9: =D8 ->  | J9: =IF(E8=0,0,(E9-E8)/E8*K9) ->  | K9: 0.75 | L9: =(1+C9)*(1-D9)*(1+J9) ->  | M9: =SUM(N9:O9) ->  | N9: =N8*$L9 ->  | O9: =O8*L9 ->  | P9: =P8*$L9 ->  | Q9: =R9+S9+Z9+AA9+AB9+AC9+AD9+AE9+AF9 ->  | R9: =R8*$L9 ->  | S9: =SUM(T9:Y9) ->  | T9: =T8*$L9 ->  | U9: =U8*L9 ->  | V9: =V8*L9 ->  | W9: =W8*$L9 ->  | AG9: =M9+P9+Q9 ->  | AH9: =AI9+AJ9 -> 0 | AN9: =SUM(AO9:AQ9) -> 0 | AZ9: =nerr((AX9+AY9)/(BC9-AH9-AU9-AX9-AY9-AM9)) ->  | BA9: =AH9+AK9+AL9+AN9+AS9+AT9+AV9+AR9+AW9+AX9+AY9 -> 0 | BC9: =SUM(BA9,BB9,AG9) ->  | BF9: =nerr((BD9+BE9)/BC9) ->  | BG9: =nerr((BC9-BC8)/BC8) ->  | BK9: =IF(BH9=0,0,BI9/BH9) -> 0 | BL9: =BI9*BJ9 -> 0 | BN9: =BL9-BM9 -> 0 | BO9: =nerr((BL9-BL8)/BL8) -> 
D10: =D9 ->  | J10: =IF(E9=0,0,(E10-E9)/E9*K10) -> 0 | K10: 0.75 | L10: =(1+C10)*(1-D10)*(1+J10) ->  | M10: =SUM(N10:O10) ->  | N10: =N9*$L10 ->  | O10: =O9*L10 ->  | P10: =P9*$L10 ->  | Q10: =R10+S10+Z10+AA10+AB10+AC10+AD10+AE10+AF10 ->  | R10: =R9*$L10 ->  | S10: =SUM(T10:Y10) ->  | T10: =T9*$L10 ->  | U10: =U9*L10 ->  | V10: =V9*L10 ->  | W10: =W9*$L10 ->  | AG10: =M10+P10+Q10 ->  | AH10: =AI10+AJ10 -> 0 | AN10: =SUM(AO10:AQ10) -> 0 | AZ10: =nerr((AX10+AY10)/(BC10-AH10-AU10-AX10-AY10-AM10)) ->  | BA10: =AH10+AK10+AL10+AN10+AS10+AT10+AV10+AR10+AW10+AX10+AY10 -> 0 | BC10: =SUM(BA10,BB10,AG10) ->  | BF10: =nerr((BD10+BE10)/BC10) ->  | BG10: =nerr((BC10-BC9)/BC9) ->  | BK10: =IF(BH10=0,0,BI10/BH10) -> 0 | BL10: =BI10*BJ10 -> 0 | BN10: =BL10-BM10 -> 0 | BO10: =nerr((BL10-BL9)/BL9) -> 
D11: =D10 ->  | J11: =IF(E10=0,0,(E11-E10)/E10*K11) -> 0 | K11: 0.75 | L11: =(1+C11)*(1-D11)*(1+J11) ->  | M11: =SUM(N11:O11) ->  | N11: =N10*$L11 ->  | O11: =O10*L11 ->  | P11: =P10*$L11 ->  | Q11: =R11+S11+Z11+AA11+AB11+AC11+AD11+AE11+AF11 ->  | R11: =R10*$L11 ->  | S11: =SUM(T11:Y11) ->  | T11: =T10*$L11 ->  | U11: =U10*L11 ->  | V11: =V10*L11 ->  | W11: =W10*$L11 ->  | AG11: =M11+P11+Q11 ->  | AH11: =AI11+AJ11 -> 0 | AN11: =SUM(AO11:AQ11) -> 0 | AZ11: =((AX11+AY11)/(BC11-AH11-AU11-AX11-AY11-AM11)) ->  | BA11: =AH11+AK11+AL11+AN11+AS11+AT11+AV11+AR11+AW11+AX11+AY11 -> 0 | BC11: =SUM(BA11,BB11,AG11) ->  | BF11: =((BD11+BE11)/BC11) ->  | BG11: =nerr((BC11-BC10)/BC10) ->  | BK11: =IF(BH11=0,0,BI11/BH11) -> 0 | BL11: =BI11*BJ11 -> 0 | BN11: =BL11-BM11 -> 0 | BO11: =nerr((BL11-BL10)/BL10) -> 
E14: 6279.2563 | BA14: =#REF! ->  | BC14: =#REF! -> 
E15: 6421.9435 | AG15: 97048.90261 | BA15: =#REF! ->  | BC15: =#REF! -> 
AG16: 114890.1485
